Workbook

Sheet OVERALL STATS
A1: OVERALL TITLE COMPANY MARKET STATISTICS Lyon County, NV)
A2: Reporting Period: JANUARY THROUGH DECEMBER, 2021
A5: OVERALL SALES MARKET (Resales & Subdivision Sales)
A6: TITLE COMPANY | B6: CLOSINGS | C6: DOLLAR VOLUME | D6: CLOSINGS | E6: DOLLAR VOLUME | F6: CLOSINGS | G6: DOLLAR VOLUME
A7: Stewart Title | B7: 1245 | C7: 370184460.1 | D7: =B7/$B$17 -> 0.4400848356 | E7: =C7/$C$17 -> 0.3882828345 | F7: 1 | G7: =RANK(C7,$C$7:$C$16) -> 1
A8: Ticor Title | B8: 790 | C8: 261063936 | D8: 0.2792506186 | E8: 0.2738273914 | F8: 2 | G8: =RANK(C8,$C$7:$C$16) -> 2
A9: First Centennial Title | B9: 517 | C9: 193434907.1 | D9: =B9/$B$17 -> 0.1827500884 | E9: =C9/$C$17 -> 0.202891969 | F9: 3 | G9: 3
A10: First American Title | B10: 121 | C10: 67662804 | D10: 0.04277129728 | E10: 0.07097084875 | F10: 4 | G10: 4
A11: Calatlantic Title West | B11: 74 | C11: 33152201 | D11: 0.02615765288 | E11: 0.03477301714 | F11: 5 | G11: 5
A12: Signature Title | B12: 27 | C12: 13489462.5 | D12: 0.009544008484 | E12: 0.01414896437 | F12: 6 | G12: 6
A13: Toiyabe Title | B13: 17 | C13: 4008400 | D13: 0.006009190527 | E13: 0.004204371284 | F13: 7 | G13: 8
A14: Acme Title and Escrow | B14: 14 | C14: 3855512 | D14: 0.00494874514 | E14: 0.004044008567 | F14: 8 | G14: 9
A15: Archer Title and Escrow | B15: 12 | C15: 4492000 | D15: 0.004241781548 | E15: 0.004711614561 | F15: 9 | G15: 7
A16: True Title and Escrow | B16: 12 | C16: 2045000 | D16: =B16/$B$17 -> 0.004241781548 | E16: =C16/$C$17 -> 0.00214498036 | F16: 9 | G16: 10
A17: GRAND TOTAL | B17: =SUM(B7:B16) -> 2829 | C17: =SUM(C7:C16) -> 953388682.7 | D17: =SUM(D7:D16) -> 1 | E17: =SUM(E7:E16) -> 1
A19: OVERALL LOAN ONLY MARKET (Refi's, Construction, Commercial, Credit Lines, Homequity, etc.)
D20: % OF | E20: % OF | F20: RANK BY | G20: RANK BY
A21: TITLECOMPANY | B21: CLOSINGS | C21: DOLLAR VOLUME | D21: CLOSINGS | E21: DOLLAR VOLUME | F21: CLOSINGS | G21: DOLLAR VOLUME
A22: Ticor Title | B22: 556 | C22: 173059989.8 | D22: =B22/$B$31 -> 0.3943262411 | E22: =C22/$C$31 -> 0.2984077813 | F22: 1 | G22: =RANK(C22,$C$22:$C$30) -> 2
A23: Stewart Title | B23: 455 | C23: 228300134.4 | D23: 0.3226950355 | E23: 0.3936585035 | F23: 2 | G23: =RANK(C23,$C$22:$C$30) -> 1
A24: First Centennial Title | B24: 188 | C24: 108846362 | D24: 0.1333333333 | E24: 0.1876840593 | F24: 3 | G24: 3
A25: First American Title | B25: 150 | C25: 54320317 | D25: 0.1063829787 | E25: 0.09366466099 | F25: 4 | G25: 4
A26: Toiyabe Title | B26: 16 | C26: 4785290 | D26: 0.01134751773 | E26: 0.008251287738 | F26: 5 | G26: 5
A27: True Title and Escrow | B27: 12 | C27: 3100431 | D27: 0.008510638298 | E27: 0.005346081072 | F27: 6 | G27: 7
A28: Archer Title and Escrow | B28: 11 | C28: 3926525 | D28: =B28/$B$31 -> 0.00780141844 | E28: =C28/$C$31 -> 0.006770517061 | F28: 7 | G28: 6
A29: Signature Title | B29: 11 | C29: 1863000 | D29: =B29/$B$31 -> 0.00780141844 | E29: =C29/$C$31 -> 0.003212375646 | F29: 7 | G29: 8
A30: Acme Title and Escrow | B30: 11 | C30: 1742579 | D30: =B30/$B$31 -> 0.00780141844 | E30: =C30/$C$31 -> 0.003004733409 | F30: 7 | G30: 9
A31: GRAND TOTAL | B31: =SUM(B22:B30) -> 1410 | C31: =SUM(C22:C30) -> 579944628.2 | D31: =SUM(D22:D30) -> 1 | E31: =SUM(E22:E30) -> 1
A33: OVERALL SALES AND LOAN ONLY MARKETS COMBINED
D34: % OF | E34: % OF | F34: RANK BY | G34: RANK BY
A35: TITLECOMPANY | B35: CLOSINGS | C35: DOLLAR VOLUME | D35: CLOSINGS | E35: DOLLAR VOLUME | F35: CLOSINGS | G35: DOLLAR VOLUME
A36: Stewart Title | B36: 1700 | C36: 598484594.5 | D36: =B36/$B$45 -> 0.4032258065 | E36: =C36/$C$45 -> 0.392470845 | F36: 1 | G36: =RANK(C36,$C$36:$C$44) -> 1
A37: Ticor Title | B37: 1346 | C37: 434123925.8 | D37: 0.319259962 | E37: 0.2846873345 | F37: 2 | G37: =RANK(C37,$C$36:$C$44) -> 2
A38: First Centennial Title | B38: 705 | C38: 302281269.1 | D38: 0.1672201139 | E38: 0.1982283023 | F38: 3 | G38: 3
A39: First American Title | B39: 271 | C39: 121983121 | D39: =B39/$B$45 -> 0.06427893738 | E39: =C39/$C$45 -> 0.07999340168 | F39: 4 | G39: 4
A40: Calatlantic Title West | B40: 74 | C40: 33152201 | D40: 0.01755218216 | E40: 0.02174036301 | F40: 5 | G40: 5
A41: Signature Title | B41: 38 | C41: 15352462.5 | D41: 0.009013282732 | E41: 0.01006775109 | F41: 6 | G41: 6
A42: Toiyabe Title | B42: 33 | C42: 8793690 | D42: 0.007827324478 | E42: 0.005766676329 | F42: 7 | G42: 7
A43: Acme Title and Escrow | B43: 25 | C43: 5598091 | D43: 0.005929791271 | E43: 0.003671084477 | F43: 8 | G43: 8
A44: True Title and Escrow | B44: 24 | C44: 5145431 | D44: =B44/$B$45 -> 0.00569259962 | E44: =C44/$C$45 -> 0.003374241661 | F44: 9 | G44: 9
A45: GRAND TOTAL | B45: =SUM(B36:B44) -> 4216 | C45: =SUM(C36:C44) -> 1524914786 | D45: =SUM(D36:D44) -> 1 | E45: =SUM(E36:E44) -> 1
A47: Information provided by Datasource | D47: SEE CHARTS BELOW:
A48: www.datasourcenev.com

Sheet SALES STATS
A1: SALES MARKET Lyon County, NV)
A2: ='OVERALL STATS'!A2 -> Reporting Period: JANUARY THROUGH DECEMBER, 2021
A4: RESALE MARKET (Includes ALL types of real property)
D5: % OF | E5: % OF | F5: RANK BY | G5: RANK BY
A6: TITLE COMPANY | B6: CLOSINGS | C6: DOLLAR VOLUME | D6: CLOSINGS | E6: DOLLAR VOLUME | F6: CLOSINGS | G6: DOLLAR VOLUME
A7: Stewart Title | B7: 1177 | C7: 344896623.6 | D7: =B7/$B$17 -> 0.4532152484 | E7: =C7/$C$17 -> 0.4015662423 | F7: 1 | G7: =RANK(C7,$C$7:$C$16) -> 1
A8: Ticor Title | B8: 760 | C8: 251654161 | D8: =B8/$B$17 -> 0.29264536 | E8: =C8/$C$17 -> 0.2930032041 | F8: 2 | G8: =RANK(C8,$C$7:$C$16) -> 2
A9: First Centennial Title | B9: 462 | C9: 169193654.1 | D9: =B9/$B$17 -> 0.1778975741 | E9: =C9/$C$17 -> 0.1969936939 | F9: 3 | G9: 3
A10: First American Title | B10: 116 | C10: 65506641 | D10: =B10/$B$17 -> 0.04466692337 | E10: =C10/$C$17 -> 0.07626997157 | F10: 4 | G10: 4
A11: Signature Title | B11: 22 | C11: 10991762.5 | D11: =B11/$B$17 -> 0.008471313054 | E11: =C11/$C$17 -> 0.01279780799 | F11: 5 | G11: 5
A12: Toiyabe Title | B12: 17 | C12: 4008400 | D12: =B12/$B$17 -> 0.006546014632 | E12: =C12/$C$17 -> 0.004667016189 | F12: 6 | G12: 7
A13: Acme Title and Escrow | B13: 14 | C13: 3855512 | D13: =B13/$B$17 -> 0.00539083558 | E13: =C13/$C$17 -> 0.004489007315 | F13: 7 | G13: 8
A14: Archer Title and Escrow | B14: 12 | C14: 4492000 | D14: =B14/$B$17 -> 0.004620716211 | E14: =C14/$C$17 -> 0.005230076021 | F14: 8 | G14: 6
A15: True Title and Escrow | B15: 12 | C15: 2045000 | D15: =B15/$B$17 -> 0.004620716211 | E15: =C15/$C$17 -> 0.002381011902 | F15: 8 | G15: 10
A16: Calatlantic Title West | B16: 5 | C16: 2234775 | D16: =B16/$B$17 -> 0.001925298421 | E16: =C16/$C$17 -> 0.002601968642 | F16: 9 | G16: 9
A17: GRAND TOTAL | B17: =SUM(B7:B16) -> 2597 | C17: =SUM(C7:C16) -> 858878529.2 | D17: =SUM(D7:D16) -> 1 | E17: =SUM(E7:E16) -> 1
A19: SUBDIVISION SALES (Builder/Developer Sales)
D20: % OF | E20: % OF | F20: RANK BY | G20: RANK BY
A21: TITLE COMPANY | B21: CLOSINGS | C21: DOLLAR VOLUME | D21: CLOSINGS | E21: DOLLAR VOLUME | F21: CLOSINGS | G21: DOLLAR VOLUME
A22: Calatlantic Title West | B22: 69 | C22: 30917426 | D22: =B22/$B$28 -> 0.2987012987 | E22: =C22/$C$28 -> 0.3292234636 | F22: 1 | G22: =RANK(C22,$C$22:$C$27) -> 1
A23: Stewart Title | B23: 67 | C23: 24687836.5 | D23: =B23/$B$28 -> 0.29004329 | E23: =C23/$C$28 -> 0.2628878303 | F23: 2 | G23: =RANK(C23,$C$22:$C$27) -> 2
A24: First Centennial Title | B24: 55 | C24: 24241253 | D24: =B24/$B$28 -> 0.2380952381 | E24: =C24/$C$28 -> 0.2581323967 | F24: 3 | G24: 3
A25: Ticor Title | B25: 30 | C25: 9409775 | D25: =B25/$B$28 -> 0.1298701299 | E25: =C25/$C$28 -> 0.1001997617 | F25: 4 | G25: 4
A26: Signature Title | B26: 5 | C26: 2497700 | D26: =B26/$B$28 -> 0.02164502165 | E26: =C26/$C$28 -> 0.02659669809 | F26: 5 | G26: 5
A27: First American Title | B27: 5 | C27: 2156163 | D27: =B27/$B$28 -> 0.02164502165 | E27: =C27/$C$28 -> 0.0229598496 | F27: 5 | G27: 6
A28: GRAND TOTAL | B28: =SUM(B22:B27) -> 231 | C28: =SUM(C22:C27) -> 93910153.5 | D28: =SUM(D22:D27) -> 1 | E28: =SUM(E22:E27) -> 1
A30: RESIDENTIAL RESALE MARKET (Residential Properties Only)
D31: % OF | E31: % OF | F31: RANK BY | G31: RANK BY
A32: TITLE COMPANY | B32: CLOSINGS | C32: DOLLAR VOLUME | D32: CLOSINGS | E32: DOLLAR VOLUME | F32: CLOSINGS | G32: DOLLAR VOLUME
A33: Stewart Title | B33: 844 | C33: 268471317.1 | D33: =B33/$B$43 -> 0.4456177402 | E33: =C33/$C$43 -> 0.409317932 | F33: 1 | G33: =RANK(C33,$C$33:$C$42) -> 1
A34: Ticor Title | B34: 579 | C34: 210439764 | D34: 0.3057022175 | E34: 0.3208416078 | F34: 2 | G34: =RANK(C34,$C$33:$C$42) -> 2
A35: First Centennial Title | B35: 332 | C35: 123095754 | D35: 0.1752903907 | E35: 0.1876747953 | F35: 3 | G35: 3
A36: First American Title | B36: 73 | C36: 27803347 | D36: 0.03854276663 | E36: 0.04238966241 | F36: 4 | G36: 4
A37: Signature Title | B37: 21 | C37: 10903762.5 | D37: 0.0110876452 | E37: 0.01662414282 | F37: 5 | G37: 5
A38: Archer Title and Escrow | B38: 12 | C38: 4492000 | D38: 0.006335797254 | E38: 0.006848612994 | F38: 6 | G38: 6
A39: Toiyabe Title | B39: 10 | C39: 3557900 | D39: =B39/$B$43 -> 0.005279831045 | E39: =C39/$C$43 -> 0.005424461302 | F39: 7 | G39: 7
A40: Acme Title and Escrow | B40: 9 | C40: 3125612 | D40: 0.004751847941 | E40: 0.004765384451 | F40: 8 | G40: 8
A41: True Title and Escrow | B41: 9 | C41: 1775000 | D41: 0.004751847941 | E41: 0.002706208385 | F41: 8 | G41: 10
A42: Calatlantic Title West | B42: 5 | C42: 2234775 | D42: =B42/$B$43 -> 0.002639915523 | E42: =C42/$C$43 -> 0.003407192587 | F42: 9 | G42: 9
A43: GRAND TOTAL | B43: =SUM(B33:B42) -> 1894 | C43: =SUM(C33:C42) -> 655899231.6 | D43: =SUM(D33:D42) -> 1 | E43: =SUM(E33:E42) -> 1
A45: COMMERCIAL/INDUSTRIAL, APARTMENTS, MOBILE HOME PARKS SALES MARKET
D46: % OF | E46: % OF | F46: RANK BY | G46: RANK BY
A47: TITLE COMPANY | B47: CLOSINGS | C47: DOLLAR VOLUME | D47: CLOSINGS | E47: DOLLAR VOLUME | F47: CLOSINGS | G47: DOLLAR VOLUME
A48: Stewart Title | B48: 18 | C48: 19871500 | D48: =B48/$B$52 -> 0.3333333333 | E48: =C48/$C$52 -> 0.241838076 | F48: 1 | G48: =RANK(C48,$C$48:$C$51) -> 2
A49: Ticor Title | B49: 16 | C49: 18615316 | D49: =B49/$B$52 -> 0.2962962963 | E49: =C49/$C$52 -> 0.2265501953 | F49: 2 | G49: =RANK(C49,$C$48:$C$51) -> 3
A50: First Centennial Title | B50: 13 | C50: 18376900 | D50: =B50/$B$52 -> 0.2407407407 | E50: =C50/$C$52 -> 0.2236486495 | F50: 3 | G50: 4
A51: First American Title | B51: 7 | C51: 25304900 | D51: =B51/$B$52 -> 0.1296296296 | E51: =C51/$C$52 -> 0.3079630792 | F51: 4 | G51: 1
A52: GRAND TOTAL | B52: =SUM(B48:B51) -> 54 | C52: =SUM(C48:C51) -> 82168616 | D52: =SUM(D48:D51) -> 1 | E52: =SUM(E48:E51) -> 1
A54: VACANT LAND SALES
D55: % OF | E55: % OF | F55: RANK BY | G55: RANK BY
A56: TITLE COMPANY | B56: CLOSINGS | C56: DOLLAR VOLUME | D56: CLOSINGS | E56: DOLLAR VOLUME | F56: CLOSINGS | G56: DOLLAR VOLUME
A57: Stewart Title | B57: 315 | C57: 56553806.48 | D57: =B57/$B$64 -> 0.4876160991 | E57: =C57/$C$64 -> 0.4691678008 | F57: 1 | G57: =RANK(C57,$C$57:$C$63) -> 1
A58: Ticor Title | B58: 165 | C58: 22599081 | D58: =B58/$B$64 -> 0.2554179567 | E58: =C58/$C$64 -> 0.1874809459 | F58: 2 | G58: =RANK(C58,$C$57:$C$63) -> 3
A59: First Centennial Title | B59: 117 | C59: 27721000.09 | D59: =B59/$B$64 -> 0.1811145511 | E59: =C59/$C$64 -> 0.2299721532 | F59: 3 | G59: 2
A60: First American Title | B60: 36 | C60: 12398394 | D60: =B60/$B$64 -> 0.05572755418 | E60: =C60/$C$64 -> 0.1028565115 | F60: 4 | G60: 4
A61: Toiyabe Title | B61: 7 | C61: 450500 | D61: =B61/$B$64 -> 0.01083591331 | E61: =C61/$C$64 -> 0.003737327466 | F61: 5 | G61: 6
A62: Acme Title and Escrow | B62: 5 | C62: 729900 | D62: =B62/$B$64 -> 0.00773993808 | E62: =C62/$C$64 -> 0.006055217131 | F62: 6 | G62: 5
A63: Signature Title | B63: 1 | C63: 88000 | D63: =B63/$B$64 -> 0.001547987616 | E63: =C63/$C$64 -> 0.0007300439889 | F63: 7 | G63: 7
A64: GRAND TOTAL | B64: =SUM(B57:B63) -> 646 | C64: =SUM(C57:C63) -> 120540681.6 | D64: =SUM(D57:D63) -> 1 | E64: =SUM(E57:E63) -> 1
A67: Information provided by Datasource
A68: www.datasourcenev.com

Sheet LOAN ONLY STATS
A1: LOAN ONLY MARKETS Lyon County, NV)
A2: ='OVERALL STATS'!A2 -> Reporting Period: JANUARY THROUGH DECEMBER, 2021
A4: CONVENTIONAL LOANS MARKET (Refi's)
D5: % OF | E5: % OF | F5: RANK BY | G5: RANK BY
A6: TITLECOMPANY | B6: CLOSINGS | C6: DOLLAR VOLUME | D6: CLOSINGS | E6: DOLLAR VOLUME | F6: CLOSINGS | G6: DOLLAR VOLUME
A7: Ticor Title | B7: 505 | C7: 117613890 | D7: =B7/$B$16 -> 0.404 | E7: =C7/$C$16 -> 0.396746837 | F7: 1 | G7: =RANK(C7,$C$7:$C$15) -> 1
A8: Stewart Title | B8: 402 | C8: 96078682.4 | D8: =B8/$B$16 -> 0.3216 | E8: =C8/$C$16 -> 0.3241021391 | F8: 2 | G8: =RANK(C8,$C$7:$C$15) -> 2
A9: First Centennial Title | B9: 152 | C9: 35952586 | D9: =B9/$B$16 -> 0.1216 | E9: =C9/$C$16 -> 0.1212788283 | F9: 3 | G9: 3
A10: First American Title | B10: 134 | C10: 32407834 | D10: 0.1072 | E10: 0.1093213194 | F10: 4 | G10: 4
A11: Toiyabe Title | B11: 14 | C11: 3847790 | D11: 0.0112 | E11: 0.0129797468 | F11: 5 | G11: 6
A12: True Title and Escrow | B12: 12 | C12: 3100431 | D12: 0.0096 | E12: 0.0104586813 | F12: 6 | G12: 7
A13: Archer Title and Escrow | B13: 11 | C13: 3926525 | D13: 0.0088 | E13: 0.01324534351 | F13: 7 | G13: 5
A14: Signature Title | B14: 10 | C14: 1785500 | D14: =B14/$B$16 -> 0.008 | E14: =C14/$C$16 -> 0.00602302566 | F14: 8 | G14: 8
A15: Acme Title and Escrow | B15: 10 | C15: 1732452 | D15: =B15/$B$16 -> 0.008 | E15: =C15/$C$16 -> 0.005844078886 | F15: 8 | G15: 9
A16: GRAND TOTAL | B16: =SUM(B7:B15) -> 1250 | C16: =SUM(C7:C15) -> 296445690.4 | D16: =SUM(D7:D15) -> 1 | E16: =SUM(E7:E15) -> 1
A18: COMMERCIAL LOANS MARKET
D19: % OF | E19: % OF | F19: RANK BY | G19: RANK BY
A20: TITLECOMPANY | B20: CLOSINGS | C20: DOLLAR VOLUME | D20: CLOSINGS | E20: DOLLAR VOLUME | F20: CLOSINGS | G20: DOLLAR VOLUME
A21: Stewart Title | B21: 6 | C21: 108628123 | D21: =B21/$B$25 -> 0.3333333333 | E21: =C21/$C$25 -> 0.845230713 | F21: 1 | G21: 1
A22: First American Title | B22: 5 | C22: 14750000 | D22: =B22/$B$25 -> 0.2777777778 | E22: =C22/$C$25 -> 0.1147691102 | F22: 2 | G22: 2
A23: First Centennial Title | B23: 4 | C23: 940052 | D23: =B23/$B$25 -> 0.2222222222 | E23: =C23/$C$25 -> 0.007314503834 | F23: 3 | G23: 4
A24: Ticor Title | B24: 3 | C24: 4200726.8 | D24: =B24/$B$25 -> 0.1666666667 | E24: =C24/$C$25 -> 0.03268567301 | F24: 4 | G24: 3
A25: GRAND TOTAL | B25: =SUM(B21:B24) -> 18 | C25: =SUM(C21:C24) -> 128518901.8 | D25: =SUM(D21:D24) -> 1 | E25: =SUM(E21:E24) -> 1
A27: HOME EQUITY & CREDIT LINE LOANS MARKET
D28: % OF | E28: % OF | F28: RANK BY | G28: RANK BY
A29: TITLECOMPANY | B29: CLOSINGS | C29: DOLLAR VOLUME | D29: CLOSINGS | E29: DOLLAR VOLUME | F29: CLOSINGS | G29: DOLLAR VOLUME
A30: Ticor Title | B30: 15 | C30: 913168 | D30: =B30/$B$35 -> 0.4054054054 | E30: =C30/$C$35 -> 0.1836453389 | F30: 1 | G30: 3
A31: Stewart Title | B31: 8 | C31: 227176 | D31: =B31/$B$35 -> 0.2162162162 | E31: =C31/$C$35 -> 0.04568689826 | F31: 2 | G31: 4
A32: First American Title | B32: 7 | C32: 2224983 | D32: =B32/$B$35 -> 0.1891891892 | E32: =C32/$C$35 -> 0.4474617563 | F32: 3 | G32: 1
A33: First Centennial Title | B33: 6 | C33: 1597000 | D33: =B33/$B$35 -> 0.1621621622 | E33: =C33/$C$35 -> 0.3211693864 | F33: 4 | G33: 2
A34: Acme Title and Escrow | B34: 1 | C34: 10127 | D34: =B34/$B$35 -> 0.02702702703 | E34: =C34/$C$35 -> 0.002036620148 | F34: 5 | G34: 5
A35: GRAND TOTAL | B35: =SUM(B30:B34) -> 37 | C35: =SUM(C30:C34) -> 4972454 | D35: =SUM(D30:D34) -> 1 | E35: =SUM(E30:E34) -> 1
A37: CONSTRUCTION LOANS MARKET
D38: % OF | E38: % OF | F38: RANK BY | G38: RANK BY
A39: TITLECOMPANY | B39: CLOSINGS | C39: DOLLAR VOLUME | D39: CLOSINGS | E39: DOLLAR VOLUME | F39: CLOSINGS | G39: DOLLAR VOLUME
A40: Ticor Title | B40: 25 | C40: 45578054 | D40: =B40/$B$45 -> 0.3787878788 | E40: =C40/$C$45 -> 0.3237064566 | F40: 1 | G40: 2
A41: Stewart Title | B41: 22 | C41: 20772793.24 | D41: =B41/$B$45 -> 0.3333333333 | E41: =C41/$C$45 -> 0.1475334443 | F41: 2 | G41: 3
A42: First Centennial Title | B42: 14 | C42: 68749724 | D42: =B42/$B$45 -> 0.2121212121 | E42: =C42/$C$45 -> 0.4882773088 | F42: 3 | G42: 1
A43: First American Title | B43: 3 | C43: 4762500 | D43: =B43/$B$45 -> 0.04545454545 | E43: =C43/$C$45 -> 0.03382443663 | F43: 4 | G43: 4
A44: Toiyabe Title | B44: 2 | C44: 937500 | D44: =B44/$B$45 -> 0.0303030303 | E44: =C44/$C$45 -> 0.006658353668 | F44: 5 | G44: 5
A45: GRAND TOTAL | B45: =SUM(B40:B44) -> 66 | C45: =SUM(C40:C44) -> 140800571.2 | D45: =SUM(D40:D44) -> 1 | E45: =SUM(E40:E44) -> 1
A47: HARD MONEY LOANS MARKET
D48: % OF | E48: % OF | F48: RANK BY | G48: RANK BY
A49: TITLECOMPANY | B49: CLOSINGS | C49: DOLLAR VOLUME | D49: CLOSINGS | E49: DOLLAR VOLUME | F49: CLOSINGS | G49: DOLLAR VOLUME
A50: Stewart Title | B50: 16 | C50: 2342459.81 | D50: =B50/$B$55 -> 0.4571428571 | E50: =C50/$C$55 -> 0.2711192947 | F50: 1 | G50: 2
A51: First Centennial Title | B51: 10 | C51: 1425000 | D51: =B51/$B$55 -> 0.2857142857 | E51: =C51/$C$55 -> 0.1649313228 | F51: 2 | G51: 3
A52: Ticor Title | B52: 7 | C52: 4620000 | D52: =B52/$B$55 -> 0.2 | E52: =C52/$C$55 -> 0.5347247096 | F52: 3 | G52: 1
A53: First American Title | B53: 1 | C53: 175000 | D53: =B53/$B$55 -> 0.02857142857 | E53: =C53/$C$55 -> 0.02025472385 | F53: 4 | G53: 4
A54: Signature Title | B54: 1 | C54: 77500 | D54: =B54/$B$55 -> 0.02857142857 | E54: =C54/$C$55 -> 0.008969949132 | F54: 4 | G54: 5
A55: GRAND TOTAL | B55: =SUM(B50:B54) -> 35 | C55: =SUM(C50:C54) -> 8639959.81 | D55: =SUM(D50:D54) -> 1 | E55: =SUM(E50:E54) -> 1
A59: Information provided by Datasource
A60: www.datasourcenev.com

Sheet BRANCH SALES TRACKING
A1: BUILDER/DEVELOPER | B1: (All)
A2: PROPTYPE | B2: (All)
D4: Values
A5: TITLE COMPANY | B5: BRANCH | C5: EO | D5: CLOSINGS | E5: DOLLAR VOL. | F5: % OF CLOSINGS | G5: % OF DOLLAR VOL.
A6: Acme Title and Escrow | D6: 14 | E6: 3855512 | F6: 0.00494874514 | G6: 0.004044008567
B7: LANDER | D7: 14 | E7: 3855512 | F7: 0.00494874514 | G7: 0.004044008567
C8: LTE | D8: 5 | E8: 1660612 | F8: 0.001767408978 | G8: 0.001741799573
C9: YC | D9: 9 | E9: 2194900 | F9: 0.003181336161 | G9: 0.002302208994
A11: First American Title | D11: 121 | E11: 67662804 | F11: 0.04277129728 | G11: 0.07097084875
B12: INCLINE | D12: 3 | E12: 535000 | F12: 0.001060445387 | G12: 0.0005611562312
C13: VD | D13: 3 | E13: 535000 | F13: 0.001060445387 | G13: 0.0005611562312
B15: KIETZKE | D15: 35 | E15: 16471700 | F15: 0.01237186285 | G15: 0.01727700391
C16: KS | D16: 5 | E16: 1472000 | F16: 0.001767408978 | G16: 0.001543966303
C17: MLR | D17: 5 | E17: 7512000 | F17: 0.001767408978 | G17: 0.00787926282
C18: MK | D18: 1 | E18: 120000 | F18: 0.0003534817957 | G18: 0.0001258668182
C19: TM | D19: 7 | E19: 2563000 | F19: 0.00247437257 | G19: 0.002688305459
C20: TK | D20: 9 | E20: 2589000 | F20: 0.003181336161 | G20: 0.002715576603
C21: MH | D21: 4 | E21: 917200 | F21: 0.001413927183 | G21: 0.0009620420471
C22: NMP | D22: 2 | E22: 814500 | F22: 0.0007069635914 | G22: 0.0008543210286
C23: PB | D23: 2 | E23: 484000 | F23: 0.0007069635914 | G23: 0.0005076628334
B25: LAS VEGAS | D25: 4 | E25: 891804 | F25: 0.001413927183 | G25: 0.0009354044329
C26: NCS | D26: 3 | E26: 879950 | F26: 0.001060445387 | G26: 0.000922970889
C27: RC | D27: 1 | E27: 11854 | F27: 0.0003534817957 | G27: 1.243354386e-05
B29: SPARKS | D29: 37 | E29: 11626423 | F29: 0.01307882644 | G29: 0.01219484058
C30: CY | D30: 12 | E30: 3190878 | F30: 0.004241781548 | G30: 0.003346880509
C31: JP | D31: 25 | E31: 8435545 | F31: 0.008837044892 | G31: 0.008847960075
B33: MINDEN | D33: 39 | E33: 12965877 | F33: 0.01378579003 | G33: 0.01359978069
C34: MK | D34: 32 | E34: 11641877 | F34: 0.01131141746 | G34: 0.01221105013
C35: ET | D35: 7 | E35: 1324000 | F35: 0.00247437257 | G35: 0.001388730561
B37: UNKNOWN | D37: 1 | E37: 1397000 | F37: 0.0003534817957 | G37: 0.001465299542
C38: UNK | D38: 1 | E38: 1397000 | F38: 0.0003534817957 | G38: 0.001465299542
B40: OMAHA, NE | D40: 1 | E40: 2775000 | F40: 0.0003534817957 | G40: 0.002910670171
C41: NCS | D41: 1 | E41: 2775000 | F41: 0.0003534817957 | G41: 0.002910670171
B43: LOS ANGELES | D43: 1 | E43: 21000000 | F43: 0.0003534817957 | G43: 0.02202669319
C44: NCS | D44: 1 | E44: 21000000 | F44: 0.0003534817957 | G44: 0.02202669319
A46: First Centennial Title | D46: 517 | E46: 193434907.1 | F46: 0.1827500884 | G46: 0.202891969
B47: CARSON CITY | D47: 253 | E47: 78629256.29 | F47: 0.08943089431 | G47: 0.08247345256
C48: 23 | D48: 133 | E48: 41299200 | F48: 0.04701307883 | G48: 0.04331832415
C49: 18 | D49: 81 | E49: 20967600 | F49: 0.02863202545 | G49: 0.02199270914
C50: 17 | D50: 39 | E50: 16362456.29 | F50: 0.01378579003 | G50: 0.01716241926
B52: DAMONTE | D52: 19 | E52: 11548048 | F52: 0.006716154118 | G52: 0.01211263382
C53: 24 | D53: 18 | E53: 11251048 | F53: 0.006362672322 | G53: 0.01180111344
C54: LS | D54: 1 | E54: 297000 | F54: 0.0003534817957 | G54: 0.0003115203751
B56: LAKESIDE | D56: 20 | E56: 6745750 | F56: 0.007069635914 | G56: 0.007075550741
C57: 12 | D57: 1 | E57: 88000 | F57: 0.0003534817957 | G57: 9.230233335e-05
C58: 5 | D58: 19 | E58: 6657750 | F58: 0.006716154118 | G58: 0.006983248408
B60: LAKESIDEMOANA | D60: 35 | E60: 12143483.8 | F60: 0.01237186285 | G60: 0.01273718057
C61: 12 | D61: 35 | E61: 12143483.8 | F61: 0.01237186285 | G61: 0.01273718057
B63: RIDGEVIEW | D63: 168 | E63: 75993587 | F63: 0.05938494168 | G63: 0.079708925
C64: 10 | D64: 12 | E64: 3491700 | F64: 0.004241781548 | G64: 0.003662409743
C65: 11 | D65: 6 | E65: 3504500 | F65: 0.002120890774 | G65: 0.003675835537
C66: 12 | D66: 2 | E66: 469000 | F66: 0.0007069635914 | G66: 0.0004919294811
C67: 15 | D67: 20 | E67: 5441600 | F67: 0.007069635914 | G67: 0.00570764065
C68: 20 | D68: 65 | E68: 40831690 | F68: 0.02297631672 | G68: 0.04282795752
C69: 9 | D69: 49 | E69: 15674400 | F69: 0.01732060799 | G69: 0.01644072379
C70: 26 | D70: 13 | E70: 6062354 | F70: 0.004595263344 | G70: 0.006358743407
C71: BZ | D71: 1 | E71: 518343 | F71: 0.0003534817957 | G71: 0.0005436848679
B73: SPARKS | D73: 21 | E73: 8280800 | F73: 0.007423117709 | G73: 0.008685649568
C74: 21 | D74: 21 | E74: 8280800 | F74: 0.007423117709 | G74: 0.008685649568
B76: UNKNOWN | D76: 1 | E76: 93982 | F76: 0.0003534817957 | G76: 9.857679424e-05
C77: UNK | D77: 1 | E77: 93982 | F77: 0.0003534817957 | G77: 9.857679424e-05
A79: Ticor Title | D79: 790 | E79: 261063936 | F79: 0.2792506186 | G79: 0.2738273914
B80: CARSON CITY | D80: 214 | E80: 71109060 | F80: 0.07564510428 | G80: 0.07458559273
C81: CD | D81: 2 | E81: 730000 | F81: 0.0007069635914 | G81: 0.0007656898107
C82: DKD | D82: 159 | E82: 52513460 | F82: 0.05620360551 | G82: 0.05508085103
C83: UNK | D83: 2 | E83: 381000 | F83: 0.0007069635914 | G83: 0.0003996271478
C84: DC | D84: 51 | E84: 17484600 | F84: 0.01802757158 | G84: 0.01833942475
B86: FERNLEY | D86: 413 | E86: 128421668 | F86: 0.1459879816 | G86: 0.1347002228
C87: DNO | D87: 413 | E87: 128421668 | F87: 0.1459879816 | G87: 0.1347002228
B89: GARDNERVILLE | D89: 33 | E89: 7150900 | F89: 0.01166489926 | G89: 0.007500508586
C90: RLT | D90: 33 | E90: 7150900 | F90: 0.01166489926 | G90: 0.007500508586
B92: INCLINE | D92: 3 | E92: 2535000 | F92: 0.001060445387 | G92: 0.002658936535
C93: SLP | D93: 3 | E93: 2535000 | F93: 0.001060445387 | G93: 0.002658936535
B95: KIETZKE | D95: 74 | E95: 34338192 | F95: 0.02615765288 | G95: 0.03601699142
C96: AE | D96: 13 | E96: 3796000 | F96: 0.004595263344 | G96: 0.003981587016
C97: CD | D97: 11 | E97: 17762010 | F97: 0.003888299753 | G97: 0.01863039736
C98: JN | D98: 1 | E98: 340000 | F98: 0.0003534817957 | G98: 0.0003566226516
C99: KA | D99: 6 | E99: 1485000 | F99: 0.002120890774 | G99: 0.001557601875
C100: RLS | D100: 27 | E100: 6271400 | F100: 0.009544008484 | G100: 0.006578009697
C101: TO | D101: 4 | E101: 598900 | F101: 0.001413927183 | G101: 0.0006281803119
C102: ACM | D102: 12 | E102: 4084882 | F102: 0.004241781548 | G102: 0.004284592501
B104: LAKESIDE | D104: 25 | E104: 8827916 | F104: 0.008837044892 | G104: 0.009259514152
C105: SL | D105: 25 | E105: 8827916 | F105: 0.008837044892 | G105: 0.009259514152
B107: PLUMB | D107: 28 | E107: 8681200 | F107: 0.009897490279 | G107: 0.009105625185
C108: NF | D108: 11 | E108: 3366500 | F108: 0.003888299753 | G108: 0.003531088696
C109: AJF | D109: 17 | E109: 5314700 | F109: 0.006009190527 | G109: 0.005574536489
A111: Toiyabe Title | D111: 17 | E111: 4008400 | F111: 0.006009190527 | G111: 0.004204371284
B112: MCCARRAN | D112: 16 | E112: 3329400 | F112: 0.005655708731 | G112: 0.003492174871
C113: JH | D113: 13 | E113: 2387400 | F113: 0.004595263344 | G113: 0.002504120348
C114: UNK | D114: 3 | E114: 942000 | F114: 0.001060445387 | G114: 0.0009880545229
B116: MINDEN | D116: 1 | E116: 679000 | F116: 0.0003534817957 | G116: 0.000712196413
C117: NF | D117: 1 | E117: 679000 | F117: 0.0003534817957 | G117: 0.000712196413
A119: Stewart Title | D119: 1245 | E119: 370184460.1 | F119: 0.4400848356 | G119: 0.3882828345
B120: CARSON CITY | D120: 231 | E120: 76151363 | F120: 0.0816542948 | G120: 0.07987441469
C121: AMG | D121: 120 | E121: 34669901 | F121: 0.04241781548 | G121: 0.03636491772
C122: UNK | D122: 33 | E122: 10749788 | F122: 0.01166489926 | G122: 0.01127534677
C123: KDJ | D123: 76 | E123: 29836774 | F123: 0.02686461647 | G123: 0.03129549841
C124: SJL | D124: 1 | E124: 399900 | F124: 0.0003534817957 | G124: 0.0004194511717
C125: BB | D125: 1 | E125: 495000 | F125: 0.0003534817957 | G125: 0.0005192006251
B127: FERNLEY | D127: 221 | E127: 70361621.73 | F127: 0.07811947685 | G127: 0.07380161209
C128: UNK | D128: 3 | E128: 509000 | F128: 0.001060445387 | G128: 0.0005338850872
C129: MLC | D129: 215 | E129: 68781672.73 | F129: 0.07599858607 | G129: 0.07214441914
C130: FLY | D130: 3 | E130: 1070949 | F130: 0.001060445387 | G130: 0.001123307859
B132: GARDNERVILLE | D132: 110 | E132: 33687716 | F132: 0.03888299753 | G132: 0.03533471355
C133: ARJ | D133: 36 | E133: 11027906 | F133: 0.01272534464 | G133: 0.011567062
C134: WLD | D134: 31 | E134: 12545700 | F134: 0.01095793567 | G134: 0.01315906118
C135: SLA | D135: 43 | E135: 10114110 | F135: 0.01519971721 | G135: 0.01060859037
B137: KIETZKE | D137: 212 | E137: 58436358.21 | F137: 0.07493814069 | G137: 0.06129332063
C138: DJA | D138: 1 | E138: 410000 | F138: 0.0003534817957 | G138: 0.0004300449622
C139: JMS | D139: 22 | E139: 6531700 | F139: 0.007776599505 | G139: 0.006851035804
C140: MDD | D140: 22 | E140: 6787000 | F140: 0.007776599505 | G140: 0.00711881746
C141: MLM | D141: 9 | E141: 2414900 | F141: 0.003181336161 | G141: 0.002532964827
C142: PAH | D142: 3 | E142: 3905000 | F142: 0.001060445387 | G142: 0.004095916042
C143: SAB | D143: 125 | E143: 28098658.21 | F143: 0.04418522446 | G143: 0.02947240587
C144: UNK | D144: 19 | E144: 7748800 | F144: 0.006716154118 | G144: 0.008127640008
C145: TEF | D145: 10 | E145: 2230300 | F145: 0.003534817957 | G145: 0.002339339705
C146: CL | D146: 1 | E146: 310000 | F146: 0.0003534817957 | G146: 0.000325155947
B148: PLUMB | D148: 69 | E148: 22639399 | F148: 0.0243902439 | G148: 0.02374624265
C149: RC | D149: 19 | E149: 6902400 | F149: 0.006716154118 | G149: 0.007239859383
C150: UNK | D150: 24 | E150: 6128500 | F150: 0.008483563097 | G150: 0.006428123295
C151: DMR | D151: 8 | E151: 2876500 | F151: 0.002827854366 | G151: 0.003017132521
C152: KB | D152: 13 | E152: 5103499 | F152: 0.004595263344 | G152: 0.00535300984
C153: HB | D153: 5 | E153: 1628500 | F153: 0.001767408978 | G153: 0.001708117612
B155: PROFESSIONAL | D155: 12 | E155: 3533000 | F155: 0.004241781548 | G155: 0.003705728906
C156: UNK | D156: 9 | E156: 2710000 | F156: 0.003181336161 | G156: 0.002842492311
C157: BC | D157: 3 | E157: 823000 | F157: 0.001060445387 | G157: 0.0008632365949
B159: SOUTH KIETZKE | D159: 103 | E159: 31164002 | F159: 0.03640862496 | G159: 0.03268761479
C160: ASK | D160: 17 | E160: 3104700 | F160: 0.006009190527 | G160: 0.003256489254
C161: CKL | D161: 6 | E161: 1964903 | F161: 0.002120890774 | G161: 0.002060967406
C162: CRF | D162: 10 | E162: 4656400 | F162: 0.003534817957 | G162: 0.004884052102
C163: MIF | D163: 70 | E163: 21437999 | F163: 0.0247437257 | G163: 0.02248610602
B165: UNKNOWN | D165: 3 | E165: 448000 | F165: 0.001060445387 | G165: 0.000469902788
C166: UNK | D166: 3 | E166: 448000 | F166: 0.001060445387 | G166: 0.000469902788
B168: YERINGTON | D168: 283 | E168: 73362720.14 | F168: 0.1000353482 | G168: 0.07694943466
C169: UNK | D169: 56 | E169: 13539850 | F169: 0.01979498056 | G169: 0.01420181532
C170: SJL | D170: 89 | E170: 34348575.14 | F170: 0.03145987982 | G170: 0.03602788219
C171: CRB | D171: 138 | E171: 25474295 | F171: 0.0487804878 | G171: 0.02671973715
B173: ELKO | D173: 1 | E173: 400280 | F173: 0.0003534817957 | G173: 0.0004198497499
C174: UNK | D174: 1 | E174: 400280 | F174: 0.0003534817957 | G174: 0.0004198497499
A176: Signature Title | D176: 27 | E176: 13489462.5 | F176: 0.009544008484 | G176: 0.01414896437
B177: MINDEN | D177: 6 | E177: 2323762.5 | F177: 0.002120890774 | G177: 0.002437371601
C178: NF | D178: 6 | E178: 2323762.5 | F178: 0.002120890774 | G178: 0.002437371601
B180: ZEPHYR | D180: 11 | E180: 5189300 | F180: 0.003888299753 | G180: 0.005443005664
C181: JML | D181: 11 | E181: 5189300 | F181: 0.003888299753 | G181: 0.005443005664
B183: RENO CORPORATE | D183: 10 | E183: 5976400 | F183: 0.003534817957 | G183: 0.006268587103
C184: DP | D184: 10 | E184: 5976400 | F184: 0.003534817957 | G184: 0.006268587103
A186: Archer Title and Escrow | D186: 12 | E186: 4492000 | F186: 0.004241781548 | G186: 0.004711614561
B187: MCCARRAN | D187: 12 | E187: 4492000 | F187: 0.004241781548 | G187: 0.004711614561
C188: RA | D188: 12 | E188: 4492000 | F188: 0.004241781548 | G188: 0.004711614561
A190: Calatlantic Title West | D190: 74 | E190: 33152201 | F190: 0.02615765288 | G190: 0.03477301714
B191: MCCARRAN | D191: 74 | E191: 33152201 | F191: 0.02615765288 | G191: 0.03477301714
C192: LH | D192: 74 | E192: 33152201 | F192: 0.02615765288 | G192: 0.03477301714
A194: True Title and Escrow | D194: 12 | E194: 2045000 | F194: 0.004241781548 | G194: 0.00214498036
B195: MCCARRAN | D195: 1 | E195: 100000 | F195: 0.0003534817957 | G195: 0.0001048890152
C196: LS | D196: 1 | E196: 100000 | F196: 0.0003534817957 | G196: 0.0001048890152
B198: PLUMB | D198: 11 | E198: 1945000 | F198: 0.003888299753 | G198: 0.002040091345
C199: FF | D199: 3 | E199: 618000 | F199: 0.001060445387 | G199: 0.0006482141138
C200: LS | D200: 8 | E200: 1327000 | F200: 0.002827854366 | G200: 0.001391877231
A202: Grand Total | D202: 2829 | E202: 953388682.7 | F202: 1 | G202: 1

Sheet LENDER TRACKING
A1: TYPELOAN | B1: (All)
C3: Values
A4: LENDER | B4: TITLE COMPANY | C4: CLOSINGS | D4: DOLLAR VOL. | E4: % OF CLOSINGS | F4: % OF DOLLAR VOL.
A5: ALL WESTERN MORTGAGE INC | C5: 13 | D5: 3380107 | E5: 0.009219858156 | F5: 0.005828327112
B6: First American Title | C6: 5 | D6: 1235747 | E6: 0.003546099291 | F6: 0.0021308017
B7: First Centennial Title | C7: 4 | D7: 1214260 | E7: 0.002836879433 | F7: 0.002093751612
B8: Ticor Title | C8: 2 | D8: 440500 | E8: 0.001418439716 | F8: 0.0007595552722
B9: Stewart Title | C9: 2 | D9: 489600 | E9: 0.001418439716 | F9: 0.0008442185273
A11: AMERICAN PACIFIC MORTGAGE CORPORATION | C11: 5 | D11: 2039525 | E11: 0.003546099291 | F11: 0.003516758154
B12: First American Title | C12: 2 | D12: 449134 | E12: 0.001418439716 | F12: 0.0007744429004
B13: Ticor Title | C13: 3 | D13: 1590391 | E13: 0.002127659574 | F13: 0.002742315253
A15: AMERIFIRST FINANCIAL INC | C15: 1 | D15: 305000 | E15: 0.0007092198582 | F15: 0.000525912277
B16: Stewart Title | C16: 1 | D16: 305000 | E16: 0.0007092198582 | F16: 0.000525912277
A18: AXIA FINANCIAL LLC | C18: 9 | D18: 2271102 | E18: 0.006382978723 | F18: 0.003916066965
B19: First American Title | C19: 1 | D19: 172000 | E19: 0.0007092198582 | F19: 0.0002965800382
B20: Ticor Title | C20: 4 | D20: 1232300 | E20: 0.002836879433 | F20: 0.002124858029
B21: Stewart Title | C21: 4 | D21: 866802 | E21: 0.002836879433 | F21: 0.001494628897
A23: BAY EQUITY LLC | C23: 8 | D23: 1673894 | E23: 0.005673758865 | F23: 0.002886299689
B24: Acme Title and Escrow | C24: 1 | D24: 173000 | E24: 0.0007092198582 | F24: 0.0002983043407
B25: First American Title | C25: 2 | D25: 380000 | E25: 0.001418439716 | F25: 0.0006552349681
B26: Ticor Title | C26: 1 | D26: 220000 | E26: 0.0007092198582 | F26: 0.0003793465605
B27: Stewart Title | C27: 4 | D27: 900894 | E27: 0.002836879433 | F27: 0.001553413819
A29: CALIBER HOME LOANS INC | C29: 9 | D29: 1901678 | E29: 0.006382978723 | F29: 0.00327906822
B30: First American Title | C30: 3 | D30: 816964 | E30: 0.002127659574 | F30: 0.001408693107
B31: Ticor Title | C31: 4 | D31: 771374 | E31: 0.002836879433 | F31: 0.001330082153
B32: Stewart Title | C32: 2 | D32: 313340 | E32: 0.001418439716 | F32: 0.0005402929603
A34: EVERGREEN MONEYSOURCE MORTGAGE COMPANY | C34: 2 | D34: 400855 | E34: 0.001418439716 | F34: 0.0006911952977
B35: Ticor Title | C35: 2 | D35: 400855 | E35: 0.001418439716 | F35: 0.0006911952977
A37: FAIRWAY INDEPENDENT MORTGAGE CORPORATION | C37: 5 | D37: 1227650 | E37: 0.003546099291 | F37: 0.002116840023
B38: Ticor Title | C38: 4 | D38: 1013900 | E38: 0.002836879433 | F38: 0.001748270353
B39: Stewart Title | C39: 1 | D39: 213750 | E39: 0.0007092198582 | F39: 0.0003685696696
A41: FINANCE OF AMERICA MORTGAGE LLC | C41: 52 | D41: 12990527 | E41: 0.03687943262 | F41: 0.0223995988
B42: Acme Title and Escrow | C42: 2 | D42: 188052 | E42: 0.001418439716 | F42: 0.0003242585427
B43: First American Title | C43: 1 | D43: 242000 | E43: 0.0007092198582 | F43: 0.0004172812165
B44: First Centennial Title | C44: 3 | D44: 909700 | E44: 0.002127659574 | F44: 0.001568598028
B45: Ticor Title | C45: 31 | D45: 8315125 | E45: 0.0219858156 | F45: 0.01433779122
B46: Toiyabe Title | C46: 1 | D46: 200000 | E46: 0.0007092198582 | F46: 0.0003448605095
B47: Stewart Title | C47: 14 | D47: 3135650 | E47: 0.009929078014 | F47: 0.005406809284
A49: GREAT BASIN FEDERAL CREDIT UNION | C49: 3 | D49: 293500 | E49: 0.002127659574 | F49: 0.0005060827977
B50: First Centennial Title | C50: 1 | D50: 243500 | E50: 0.0007092198582 | F50: 0.0004198676704
B51: Stewart Title | C51: 2 | D51: 50000 | E51: 0.001418439716 | F51: 8.621512738e-05
A53: GREATER NEVADA CREDIT UNION | C53: 12 | D53: 868140 | E53: 0.008510638298 | F53: 0.001496936014
B54: First American Title | C54: 1 | D54: 36000 | E54: 0.0007092198582 | F54: 6.207489172e-05
B55: First Centennial Title | C55: 1 | D55: 45000 | E55: 0.0007092198582 | F55: 7.759361465e-05
B56: Ticor Title | C56: 10 | D56: 787140 | E56: 0.007092198582 | F56: 0.001357267507
A58: GREATER NEVADA MORTGAGE | C58: 66 | D58: 12657580 | E58: 0.04680851064 | F58: 0.02182549744
B59: Acme Title and Escrow | C59: 1 | D59: 57000 | E59: 0.0007092198582 | F59: 9.828524522e-05
B60: First American Title | C60: 4 | D60: 819500 | E60: 0.002836879433 | F60: 0.001413065938
B61: First Centennial Title | C61: 12 | D61: 2665160 | E61: 0.008510638298 | F61: 0.004595542178
B62: Ticor Title | C62: 42 | D62: 7721920 | E62: 0.02978723404 | F62: 0.01331492633
B63: Stewart Title | C63: 7 | D63: 1394000 | E63: 0.004964539007 | F63: 0.002403677751
A65: GUARANTEED RATE INC | C65: 1 | D65: 324000 | E65: 0.0007092198582 | F65: 0.0005586740254
B66: First Centennial Title | C66: 1 | D66: 324000 | E66: 0.0007092198582 | F66: 0.0005586740254
A68: HERITAGE BANK OF NEVADA | C68: 30 | D68: 19500258.8 | E68: 0.02127659574 | F68: 0.03362434593
B69: First American Title | C69: 2 | D69: 3799000 | E69: 0.001418439716 | F69: 0.006550625379
B70: First Centennial Title | C70: 5 | D70: 6038500 | E70: 0.003546099291 | F70: 0.01041220093
B71: Ticor Title | C71: 21 | D71: 7225808.8 | E71: 0.01489361702 | F71: 0.01245948052
B72: Stewart Title | C72: 2 | D72: 2436950 | E72: 0.001418439716 | F72: 0.004202039094
A74: ISERVE RESIDENTIAL LENDING LLC | C74: 22 | D74: 5697966 | E74: 0.01560283688 | F74: 0.00982501729
B75: Acme Title and Escrow | C75: 1 | D75: 252200 | E75: 0.0007092198582 | F75: 0.0004348691025
B76: First Centennial Title | C76: 5 | D76: 1130737 | E76: 0.003546099291 | F76: 0.00194973269
B77: Ticor Title | C77: 2 | D77: 443085 | E77: 0.001418439716 | F77: 0.0007640125943
B78: Stewart Title | C78: 14 | D78: 3871944 | E78: 0.009929078014 | F78: 0.006676402904
A80: LAND HOME FINANCIAL SERVICES INC | C80: 2 | D80: 338000 | E80: 0.001418439716 | F80: 0.0005828142611
B81: First American Title | C81: 1 | D81: 164000 | E81: 0.0007092198582 | F81: 0.0002827856178
B82: Ticor Title | C82: 1 | D82: 174000 | E82: 0.0007092198582 | F82: 0.0003000286433
A84: LOANDEPOT.COM LLC | C84: 2 | D84: 592000 | E84: 0.001418439716 | F84: 0.001020787108
B85: Stewart Title | C85: 2 | D85: 592000 | E85: 0.001418439716 | F85: 0.001020787108
A87: MANN MORTGAGE LLC | C87: 9 | D87: 2078520 | E87: 0.006382978723 | F87: 0.003583997331
B88: First Centennial Title | C88: 2 | D88: 324000 | E88: 0.001418439716 | F88: 0.0005586740254
B89: Stewart Title | C89: 7 | D89: 1754520 | E89: 0.004964539007 | F89: 0.003025323306
A91: MASON MCDUFFIE MORTGAGE CORPORATION | C91: 2 | D91: 262012 | E91: 0.001418439716 | F91: 0.0004517879591
B92: First American Title | C92: 1 | D92: 183150 | E92: 0.0007092198582 | F92: 0.0003158060116
B93: Stewart Title | C93: 1 | D93: 78862 | E93: 0.0007092198582 | F93: 0.0001359819475
A95: MOUNTAIN AMERICA FEDERAL CREDIT UNION | C95: 7 | D95: 1367000 | E95: 0.004964539007 | F95: 0.002357121583
B96: First Centennial Title | C96: 2 | D96: 351500 | E96: 0.001418439716 | F96: 0.0006060923455
B97: Ticor Title | C97: 2 | D97: 415000 | E97: 0.001418439716 | F97: 0.0007155855573
B98: Stewart Title | C98: 3 | D98: 600500 | E98: 0.002127659574 | F98: 0.00103544368
A100: NEVADA STATE BANK | C100: 18 | D100: 3044000 | E100: 0.01276595745 | F100: 0.005248776955
B101: First Centennial Title | C101: 5 | D101: 830000 | E101: 0.003546099291 | F101: 0.001431171115
B102: Ticor Title | C102: 11 | D102: 1968000 | E102: 0.00780141844 | F102: 0.003393427414
B103: Stewart Title | C103: 2 | D103: 246000 | E103: 0.001418439716 | F103: 0.0004241784267
A105: NEW AMERICAN FUNDING | C105: 31 | D105: 8396989 | E105: 0.0219858156 | F105: 0.01447894953
B106: First American Title | C106: 3 | D106: 579000 | E106: 0.002127659574 | F106: 0.0009983711751
B107: First Centennial Title | C107: 1 | D107: 272600 | E107: 0.0007092198582 | F107: 0.0004700448745
B108: Ticor Title | C108: 8 | D108: 2139979 | E108: 0.005673758865 | F108: 0.003689971242
B109: Stewart Title | C109: 15 | D109: 4141914 | E109: 0.01063829787 | F109: 0.007141912862
B110: Archer Title and Escrow | C110: 2 | D110: 679896 | E110: 0.001418439716 | F110: 0.001172346405
B111: True Title and Escrow | C111: 2 | D111: 583600 | E111: 0.001418439716 | F111: 0.001006302967
A113: ON Q FINANCIAL INC | C113: 4 | D113: 1223756 | E113: 0.002836879433 | F113: 0.002110125589
B114: First American Title | C114: 3 | D114: 1038756 | E114: 0.002127659574 | F114: 0.001791129617
B115: Stewart Title | C115: 1 | D115: 185000 | E115: 0.0007092198582 | F115: 0.0003189959713
A117: ONETRUST HOME LOANS | C117: 2 | D117: 498600 | E117: 0.001418439716 | F117: 0.0008597372503
B118: Ticor Title | C118: 1 | D118: 80000 | E118: 0.0007092198582 | F118: 0.0001379442038
B119: Stewart Title | C119: 1 | D119: 418600 | E119: 0.0007092198582 | F119: 0.0007217930465
A121: PARAMOUNT RESIDENTIAL MORTGAGE GROUP INC | C121: 3 | D121: 431500 | E121: 0.002127659574 | F121: 0.0007440365493
B122: Stewart Title | C122: 3 | D122: 431500 | E122: 0.002127659574 | F122: 0.0007440365493
A124: PLUMAS BANK | C124: 3 | D124: 7437200 | E124: 0.002127659574 | F124: 0.01282398291
B125: First American Title | C125: 1 | D125: 4900000 | E125: 0.0007092198582 | F125: 0.008449082484
B126: Ticor Title | C126: 2 | D126: 2537200 | E126: 0.001418439716 | F126: 0.004374900424
A128: PRIMELENDING | C128: 46 | D128: 10387213 | E128: 0.03262411348 | F128: 0.01791069784
B129: First American Title | C129: 1 | D129: 127000 | E129: 0.0007092198582 | F129: 0.0002189864236
B130: First Centennial Title | C130: 4 | D130: 763000 | E130: 0.002836879433 | F130: 0.001315642844
B131: Ticor Title | C131: 14 | D131: 2916266 | E131: 0.009929078014 | F131: 0.005028524893
B132: Stewart Title | C132: 25 | D132: 6117947 | E132: 0.01773049645 | F132: 0.0105491916
B133: Archer Title and Escrow | C133: 2 | D133: 463000 | E133: 0.001418439716 | F133: 0.0007983520796
A135: PROVIDENT FUNDING ASSOCIATES LP | C135: 3 | D135: 635000 | E135: 0.002127659574 | F135: 0.001094932118
B136: Stewart Title | C136: 3 | D136: 635000 | E136: 0.002127659574 | F136: 0.001094932118
A138: RESIDENTIAL BANCORP | C138: 2 | D138: 403785 | E138: 0.001418439716 | F138: 0.0006962475042
B139: First Centennial Title | C139: 2 | D139: 403785 | E139: 0.001418439716 | F139: 0.0006962475042
A141: SIERRA PACIFIC MORTGAGE COMPANY INC | C141: 2 | D141: 384029 | E141: 0.001418439716 | F141: 0.0006621821831
B142: Ticor Title | C142: 1 | D142: 173000 | E142: 0.0007092198582 | F142: 0.0002983043407
B143: Stewart Title | C143: 1 | D143: 211029 | E143: 0.0007092198582 | F143: 0.0003638778423
A145: STEARNS LENDING LLC | C145: 1 | D145: 88000 | E145: 0.0007092198582 | F145: 0.0001517386242
B146: Ticor Title | C146: 1 | D146: 88000 | E146: 0.0007092198582 | F146: 0.0001517386242
A148: SUMMIT FUNDING INC | C148: 79 | D148: 19155912 | E148: 0.05602836879 | F148: 0.03303058786
B149: First American Title | C149: 14 | D149: 3311300 | E149: 0.009929078014 | F149: 0.005709683026
B150: First Centennial Title | C150: 1 | D150: 210622 | E150: 0.0007092198582 | F150: 0.0003631760512
B151: Ticor Title | C151: 31 | D151: 6321247 | E151: 0.0219858156 | F151: 0.01089974231
B152: Stewart Title | C152: 33 | D152: 9312743 | E152: 0.02340425532 | F152: 0.01605798648
A154: SYNERGY HOME MORTGAGE LLC | C154: 7 | D154: 4467100 | E154: 0.004964539007 | F154: 0.007702631911
B155: First Centennial Title | C155: 4 | D155: 1188900 | E155: 0.002836879433 | F155: 0.002050023299
B156: Stewart Title | C156: 3 | D156: 3278200 | E156: 0.002127659574 | F156: 0.005652608612
A158: UMPQUA BANK | C158: 20 | D158: 56933050 | E158: 0.01418439716 | F158: 0.09816980316
B159: First American Title | C159: 2 | D159: 3100000 | E159: 0.001418439716 | F159: 0.005345337898
B160: Ticor Title | C160: 3 | D160: 788850 | E160: 0.002127659574 | F160: 0.001360216065
B161: Stewart Title | C161: 15 | D161: 53044200 | E161: 0.01063829787 | F161: 0.0914642492
A163: UNITED FEDERAL CREDIT UNION | C163: 51 | D163: 12311469 | E163: 0.03617021277 | F163: 0.02122869736
B164: First Centennial Title | C164: 46 | D164: 11114878 | E164: 0.03262411348 | F164: 0.01916541245
B165: Ticor Title | C165: 3 | D165: 757091 | E165: 0.002127659574 | F165: 0.00130545394
B166: Stewart Title | C166: 2 | D166: 439500 | E166: 0.001418439716 | F166: 0.0007578309697
A168: US BANK NA | C168: 5 | D168: 1428250 | E168: 0.003546099291 | F168: 0.002462735114
B169: First American Title | C169: 1 | D169: 150000 | E169: 0.0007092198582 | F169: 0.0002586453822
B170: First Centennial Title | C170: 1 | D170: 252000 | E170: 0.0007092198582 | F170: 0.000434524242
B171: Stewart Title | C171: 3 | D171: 1026250 | E171: 0.002127659574 | F171: 0.00176956549
A173: WELLS FARGO BANK NA | C173: 36 | D173: 6214641 | E173: 0.02553191489 | F173: 0.01071592131
B174: Acme Title and Escrow | C174: 1 | D174: 61000 | E174: 0.0007092198582 | F174: 0.0001051824554
B175: First American Title | C175: 1 | D175: 104000 | E175: 0.0007092198582 | F175: 0.000179327465
B176: First Centennial Title | C176: 6 | D176: 1341200 | E176: 0.004255319149 | F176: 0.002312634577
B177: Ticor Title | C177: 4 | D177: 802888 | E177: 0.002836879433 | F177: 0.001384421824
B178: Stewart Title | C178: 24 | D178: 3905553 | E178: 0.0170212766 | F178: 0.006734354988
A180: WESTSTAR CREDIT UNION | C180: 1 | D180: 50000 | E180: 0.0007092198582 | F180: 8.621512738e-05
B181: Ticor Title | C181: 1 | D181: 50000 | E181: 0.0007092198582 | F181: 8.621512738e-05
A183: PRIMARY RESIDENTIAL MORTGAGE INC | C183: 5 | D183: 1412520 | E183: 0.003546099291 | F183: 0.002435611835
B184: Ticor Title | C184: 1 | D184: 219451 | E184: 0.0007092198582 | F184: 0.0003783999184
B185: Stewart Title | C185: 4 | D185: 1193069 | E185: 0.002836879433 | F185: 0.002057211916
A187: USAA FEDERAL SAVINGS BANK | C187: 1 | D187: 237656 | E187: 0.0007092198582 | F187: 0.0004097908463
B188: Ticor Title | C188: 1 | D188: 237656 | E188: 0.0007092198582 | F188: 0.0004097908463
A190: NEVADA RURAL HOUSING AUTHORITY | C190: 8 | D190: 67314 | E190: 0.005673758865 | F190: 0.0001160697017
B191: Acme Title and Escrow | C191: 1 | D191: 10127 | E191: 0.0007092198582 | F191: 1.74620119e-05
B192: First American Title | C192: 2 | D192: 8983 | E192: 0.001418439716 | F192: 1.548940979e-05
B193: Ticor Title | C193: 2 | D193: 18528 | E193: 0.001418439716 | F193: 3.19478776e-05
B194: Stewart Title | C194: 3 | D194: 29676 | E194: 0.002127659574 | F194: 5.11704024e-05
A196: WOLFE FINANCIAL INC | C196: 2 | D196: 594000 | E196: 0.001418439716 | F196: 0.001024235713
B197: Acme Title and Escrow | C197: 1 | D197: 393000 | E197: 0.0007092198582 | F197: 0.0006776509012
B198: First Centennial Title | C198: 1 | D198: 201000 | E198: 0.0007092198582 | F198: 0.0003465848121
A200: CALCON MUTUAL MORTGAGE LLC | C200: 7 | D200: 1671380 | E200: 0.004964539007 | F200: 0.002881964792
B201: Acme Title and Escrow | C201: 1 | D201: 287500 | E201: 0.0007092198582 | F201: 0.0004957369825
B202: Ticor Title | C202: 1 | D202: 222400 | E202: 0.0007092198582 | F202: 0.0003834848866
B203: Stewart Title | C203: 5 | D203: 1161480 | E203: 0.003546099291 | F203: 0.002002742923
A205: GREATER NEVADA LLC | C205: 70 | D205: 15020427 | E205: 0.04964539007 | F205: 0.02589976054
B206: Acme Title and Escrow | C206: 1 | D206: 107700 | E206: 0.0007092198582 | F206: 0.0001857073844
B207: First American Title | C207: 2 | D207: 459000 | E207: 0.001418439716 | F207: 0.0007914548694
B208: First Centennial Title | C208: 18 | D208: 5194375 | E208: 0.01276595745 | F208: 0.008956674046
B209: Ticor Title | C209: 35 | D209: 6880002 | E209: 0.02482269504 | F209: 0.01186320498
B210: Stewart Title | C210: 14 | D210: 2379350 | E210: 0.009929078014 | F210: 0.004102719267
A212: INFINITY EQUITY GROUP LLC | C212: 1 | D212: 213000 | E212: 0.0007092198582 | F212: 0.0003672764427
B213: Acme Title and Escrow | C213: 1 | D213: 213000 | E213: 0.0007092198582 | F213: 0.0003672764427
A215: GUILD MORTGAGE CO LLC | C215: 97 | D215: 23164102 | E215: 0.06879432624 | F215: 0.03994192009
B216: First American Title | C216: 14 | D216: 3205140 | E216: 0.009929078014 | F216: 0.005526631068
B217: First Centennial Title | C217: 6 | D217: 1376207 | E217: 0.004255319149 | F217: 0.002372997236
B218: Ticor Title | C218: 61 | D218: 14756179 | E218: 0.04326241135 | F218: 0.02544411704
B219: Stewart Title | C219: 15 | D219: 3573508 | E219: 0.01063829787 | F219: 0.006161808949
B220: Archer Title and Escrow | C220: 1 | D220: 253068 | E220: 0.0007092198582 | F220: 0.0004363657971
A222: PHH MORTGAGE CORPORATION | C222: 1 | D222: 540000 | E222: 0.0007092198582 | F222: 0.0009311233757
B223: Archer Title and Escrow | C223: 1 | D223: 540000 | E223: 0.0007092198582 | F223: 0.0009311233757
A225: MORTGAGE ELECTRONIC REGISTRATION SYSTEMS INC | C225: 2 | D225: 1065000 | E225: 0.001418439716 | F225: 0.001836382213
B226: Stewart Title | C226: 1 | D226: 480000 | E226: 0.0007092198582 | F226: 0.0008276652229
B227: Archer Title and Escrow | C227: 1 | D227: 585000 | E227: 0.0007092198582 | F227: 0.00100871699
A229: MOVEMENT MORTGAGE LLC | C229: 23 | D229: 6038121 | E229: 0.01631205674 | F229: 0.01041154742
B230: First Centennial Title | C230: 3 | D230: 623371 | E230: 0.002127659574 | F230: 0.001074880203
B231: Ticor Title | C231: 10 | D231: 2546762 | E231: 0.007092198582 | F231: 0.004391388205
B232: Toiyabe Title | C232: 1 | D232: 280452 | E232: 0.0007092198582 | F232: 0.0004835840981
B233: Stewart Title | C233: 7 | D233: 1882989 | E233: 0.004964539007 | F233: 0.00324684273
B234: Archer Title and Escrow | C234: 2 | D234: 704547 | E234: 0.001418439716 | F234: 0.001214852187
A236: BROKER SOLUTIONS INC | C236: 13 | D236: 3477745 | E236: 0.009219858156 | F236: 0.005996684564
B237: First American Title | C237: 4 | D237: 970910 | E237: 0.002836879433 | F237: 0.001674142587
B238: Ticor Title | C238: 2 | D238: 530500 | E238: 0.001418439716 | F238: 0.0009147425015
B239: Toiyabe Title | C239: 4 | D239: 1109890 | E239: 0.002836879433 | F239: 0.001913786155
B240: Stewart Title | C240: 2 | D240: 332790 | E240: 0.001418439716 | F240: 0.0005738306448
B241: Archer Title and Escrow | C241: 1 | D241: 533655 | E241: 0.0007092198582 | F241: 0.0009201826761
A243: LENDUS LLC | C243: 4 | D243: 935359 | E243: 0.002836879433 | F243: 0.001612841907
B244: Stewart Title | C244: 3 | D244: 768000 | E244: 0.002127659574 | F244: 0.001324264357
B245: Archer Title and Escrow | C245: 1 | D245: 167359 | E245: 0.0007092198582 | F245: 0.0002885775501
A247: MONDEEL ELIZABETH J | C247: 1 | D247: 175000 | E247: 0.0007092198582 | F247: 0.0003017529458
B248: First American Title | C248: 1 | D248: 175000 | E248: 0.0007092198582 | F248: 0.0003017529458
A250: LONE MORTGAGE INC | C250: 2 | D250: 501354 | E250: 0.001418439716 | F250: 0.0008644859795
B251: First American Title | C251: 1 | D251: 180054 | E251: 0.0007092198582 | F251: 0.0003104675709
B252: Stewart Title | C252: 1 | D252: 321300 | E252: 0.0007092198582 | F252: 0.0005540184086
A254: SIERRA PACIFIC MORTGAGE CO INC | C254: 11 | D254: 3075417 | E254: 0.00780141844 | F254: 0.005302949368
... 318 more rows

Sheet SALES_LIST (hidden)
A1: FULLNAME | B1: RECBY | C1: BRANCH | D1: EO | E1: PROPTYPE | F1: DOCNUM | G1: AMOUNT | H1: SUB | I1: INSURED | J1: RECDATE | K1: Last Row: | L1: 2830
A2: Acme Title and Escrow | B2: ACT | C2: LANDER | D2: YC | E2: VACANT LAND | F2: 637264 | G2: 12000 | H2: NO | I2: YES | J2: 2021-05-13
A3: Acme Title and Escrow | B3: ACT | C3: LANDER | D3: LTE | E3: SINGLE FAM RES. | F3: 646035 | G3: 399000 | H3: NO | I3: YES | J3: 2021-10-13
A4: Acme Title and Escrow | B4: ACT | C4: LANDER | D4: YC | E4: SINGLE FAM RES. | F4: 645799 | G4: 525000 | H4: NO | I4: YES | J4: 2021-10-08
A5: Acme Title and Escrow | B5: ACT | C5: LANDER | D5: LTE | E5: SINGLE FAM RES. | F5: 628264 | G5: 355000 | H5: NO | I5: YES | J5: 2021-01-08
A6: Acme Title and Escrow | B6: ACT | C6: LANDER | D6: LTE | E6: SINGLE FAM RES. | F6: 642556 | G6: 145612 | H6: NO | I6: YES | J6: 2021-08-11
A7: Acme Title and Escrow | B7: ACT | C7: LANDER | D7: YC | E7: SINGLE FAM RES. | F7: 628605 | G7: 315000 | H7: NO | I7: YES | J7: 2021-01-15
A8: Acme Title and Escrow | B8: ACT | C8: LANDER | D8: YC | E8: VACANT LAND | F8: 649425 | G8: 635000 | H8: NO | I8: YES | J8: 2021-12-08
A9: Acme Title and Escrow | B9: ACT | C9: LANDER | D9: YC | E9: SINGLE FAM RES. | F9: 640190 | G9: 350000 | H9: NO | I9: YES | J9: 2021-06-29
A10: Acme Title and Escrow | B10: ACT | C10: LANDER | D10: YC | E10: SINGLE FAM RES. | F10: 633824 | G10: 275000 | H10: NO | I10: YES | J10: 2021-03-26
A11: Acme Title and Escrow | B11: ACT | C11: LANDER | D11: LTE | E11: SINGLE FAM RES. | F11: 633043 | G11: 380000 | H11: NO | I11: YES | J11: 2021-03-16
A12: Acme Title and Escrow | B12: ACT | C12: LANDER | D12: LTE | E12: SINGLE FAM RES. | F12: 640250 | G12: 381000 | H12: NO | I12: YES | J12: 2021-06-30
A13: Acme Title and Escrow | B13: ACT | C13: LANDER | D13: YC | E13: VACANT LAND | F13: 636925 | G13: 14000 | H13: NO | I13: YES | J13: 2021-05-07
A14: Acme Title and Escrow | B14: ACT | C14: LANDER | D14: YC | E14: VACANT LAND | F14: 641258 | G14: 13900 | H14: NO | I14: YES | J14: 2021-07-19
A15: Acme Title and Escrow | B15: ACT | C15: LANDER | D15: YC | E15: VACANT LAND | F15: 644291 | G15: 55000 | H15: NO | I15: YES | J15: 2021-09-13
A16: Archer Title and Escrow | B16: ATE | C16: MCCARRAN | D16: RA | E16: MOBILE HOME | F16: 634055 | G16: 410000 | H16: NO | I16: YES | J16: 2021-03-30
A17: Archer Title and Escrow | B17: ATE | C17: MCCARRAN | D17: RA | E17: SINGLE FAM RES. | F17: 649538 | G17: 606000 | H17: NO | I17: YES | J17: 2021-12-10
A18: Archer Title and Escrow | B18: ATE | C18: MCCARRAN | D18: RA | E18: SINGLE FAM RES. | F18: 644010 | G18: 320000 | H18: NO | I18: YES | J18: 2021-09-07
A19: Archer Title and Escrow | B19: ATE | C19: MCCARRAN | D19: RA | E19: SINGLE FAM RES. | F19: 647572 | G19: 150000 | H19: NO | I19: YES | J19: 2021-11-04
A20: Archer Title and Escrow | B20: ATE | C20: MCCARRAN | D20: RA | E20: SINGLE FAM RES. | F20: 639587 | G20: 420000 | H20: NO | I20: YES | J20: 2021-06-22
A21: Archer Title and Escrow | B21: ATE | C21: MCCARRAN | D21: RA | E21: SINGLE FAM RES. | F21: 645255 | G21: 355000 | H21: NO | I21: YES | J21: 2021-09-30
A22: Archer Title and Escrow | B22: ATE | C22: MCCARRAN | D22: RA | E22: SINGLE FAM RES. | F22: 641139 | G22: 375000 | H22: NO | I22: YES | J22: 2021-07-16
A23: Archer Title and Escrow | B23: ATE | C23: MCCARRAN | D23: RA | E23: SINGLE FAM RES. | F23: 649776 | G23: 340000 | H23: NO | I23: YES | J23: 2021-12-16
A24: Archer Title and Escrow | B24: ATE | C24: MCCARRAN | D24: RA | E24: SINGLE FAM RES. | F24: 648710 | G24: 300000 | H24: NO | I24: YES | J24: 2021-11-23
A25: Archer Title and Escrow | B25: ATE | C25: MCCARRAN | D25: RA | E25: SINGLE FAM RES. | F25: 634034 | G25: 430000 | H25: NO | I25: YES | J25: 2021-03-30
A26: Archer Title and Escrow | B26: ATE | C26: MCCARRAN | D26: RA | E26: MOBILE HOME | F26: 649512 | G26: 386000 | H26: NO | I26: YES | J26: 2021-12-10
A27: Archer Title and Escrow | B27: ATE | C27: MCCARRAN | D27: RA | E27: SINGLE FAM RES. | F27: 643895 | G27: 400000 | H27: NO | I27: YES | J27: 2021-09-03
A28: Calatlantic Title West | B28: CAL | C28: MCCARRAN | D28: LH | E28: SINGLE FAM RES. | F28: 641937 | G28: 468810 | H28: YES | I28: YES | J28: 2021-07-30
A29: Calatlantic Title West | B29: CAL | C29: MCCARRAN | D29: LH | E29: SINGLE FAM RES. | F29: 643044 | G29: 481792 | H29: YES | I29: YES | J29: 2021-08-19
A30: Calatlantic Title West | B30: CAL | C30: MCCARRAN | D30: LH | E30: SINGLE FAM RES. | F30: 633953 | G30: 427600 | H30: NO | I30: YES | J30: 2021-03-29
A31: Calatlantic Title West | B31: CAL | C31: MCCARRAN | D31: LH | E31: SINGLE FAM RES. | F31: 641297 | G31: 473409 | H31: YES | I31: YES | J31: 2021-07-20
A32: Calatlantic Title West | B32: CAL | C32: MCCARRAN | D32: LH | E32: SINGLE FAM RES. | F32: 639130 | G32: 420719 | H32: YES | I32: YES | J32: 2021-06-14
A33: Calatlantic Title West | B33: CAL | C33: MCCARRAN | D33: LH | E33: SINGLE FAM RES. | F33: 644897 | G33: 504414 | H33: YES | I33: YES | J33: 2021-09-23
A34: Calatlantic Title West | B34: CAL | C34: MCCARRAN | D34: LH | E34: SINGLE FAM RES. | F34: 635717 | G34: 393555 | H34: YES | I34: YES | J34: 2021-04-19
A35: Calatlantic Title West | B35: CAL | C35: MCCARRAN | D35: LH | E35: SINGLE FAM RES. | F35: 634427 | G35: 445517 | H35: YES | I35: YES | J35: 2021-03-31
A36: Calatlantic Title West | B36: CAL | C36: MCCARRAN | D36: LH | E36: SINGLE FAM RES. | F36: 644715 | G36: 498497 | H36: YES | I36: YES | J36: 2021-09-21
A37: Calatlantic Title West | B37: CAL | C37: MCCARRAN | D37: LH | E37: SINGLE FAM RES. | F37: 634514 | G37: 366831 | H37: YES | I37: YES | J37: 2021-04-01
A38: Calatlantic Title West | B38: CAL | C38: MCCARRAN | D38: LH | E38: SINGLE FAM RES. | F38: 641517 | G38: 559950 | H38: YES | I38: YES | J38: 2021-07-23
A39: Calatlantic Title West | B39: CAL | C39: MCCARRAN | D39: LH | E39: SINGLE FAM RES. | F39: 632431 | G39: 380184 | H39: YES | I39: YES | J39: 2021-03-08
A40: Calatlantic Title West | B40: CAL | C40: MCCARRAN | D40: LH | E40: SINGLE FAM RES. | F40: 641813 | G40: 486642 | H40: YES | I40: YES | J40: 2021-07-29
A41: Calatlantic Title West | B41: CAL | C41: MCCARRAN | D41: LH | E41: SINGLE FAM RES. | F41: 628543 | G41: 388610 | H41: YES | I41: YES | J41: 2021-01-14
A42: Calatlantic Title West | B42: CAL | C42: MCCARRAN | D42: LH | E42: SINGLE FAM RES. | F42: 628495 | G42: 455424 | H42: YES | I42: YES | J42: 2021-01-13
A43: Calatlantic Title West | B43: CAL | C43: MCCARRAN | D43: LH | E43: SINGLE FAM RES. | F43: 648881 | G43: 462461 | H43: YES | I43: YES | J43: 2021-11-29
A44: Calatlantic Title West | B44: CAL | C44: MCCARRAN | D44: LH | E44: SINGLE FAM RES. | F44: 644959 | G44: 506217 | H44: YES | I44: YES | J44: 2021-09-24
A45: Calatlantic Title West | B45: CAL | C45: MCCARRAN | D45: LH | E45: SINGLE FAM RES. | F45: 644235 | G45: 425996 | H45: YES | I45: YES | J45: 2021-09-10
A46: Calatlantic Title West | B46: CAL | C46: MCCARRAN | D46: LH | E46: SINGLE FAM RES. | F46: 640884 | G46: 442955 | H46: YES | I46: YES | J46: 2021-07-12
A47: Calatlantic Title West | B47: CAL | C47: MCCARRAN | D47: LH | E47: SINGLE FAM RES. | F47: 650305 | G47: 490567 | H47: YES | I47: YES | J47: 2021-12-23
A48: Calatlantic Title West | B48: CAL | C48: MCCARRAN | D48: LH | E48: SINGLE FAM RES. | F48: 641250 | G48: 440159 | H48: YES | I48: YES | J48: 2021-07-19
A49: Calatlantic Title West | B49: CAL | C49: MCCARRAN | D49: LH | E49: SINGLE FAM RES. | F49: 647695 | G49: 469950 | H49: YES | I49: YES | J49: 2021-11-05
A50: Calatlantic Title West | B50: CAL | C50: MCCARRAN | D50: LH | E50: SINGLE FAM RES. | F50: 636305 | G50: 397547 | H50: YES | I50: YES | J50: 2021-04-28
A51: Calatlantic Title West | B51: CAL | C51: MCCARRAN | D51: LH | E51: SINGLE FAM RES. | F51: 633198 | G51: 385285 | H51: YES | I51: YES | J51: 2021-03-18
A52: Calatlantic Title West | B52: CAL | C52: MCCARRAN | D52: LH | E52: SINGLE FAM RES. | F52: 629300 | G52: 397610 | H52: YES | I52: YES | J52: 2021-01-27
A53: Calatlantic Title West | B53: CAL | C53: MCCARRAN | D53: LH | E53: SINGLE FAM RES. | F53: 633509 | G53: 385168 | H53: YES | I53: YES | J53: 2021-03-23
A54: Calatlantic Title West | B54: CAL | C54: MCCARRAN | D54: LH | E54: SINGLE FAM RES. | F54: 646481 | G54: 545567 | H54: YES | I54: YES | J54: 2021-10-21
A55: Calatlantic Title West | B55: CAL | C55: MCCARRAN | D55: LH | E55: SINGLE FAM RES. | F55: 628886 | G55: 425261 | H55: YES | I55: YES | J55: 2021-01-21
A56: Calatlantic Title West | B56: CAL | C56: MCCARRAN | D56: LH | E56: SINGLE FAM RES. | F56: 633628 | G56: 422899 | H56: YES | I56: YES | J56: 2021-03-24
A57: Calatlantic Title West | B57: CAL | C57: MCCARRAN | D57: LH | E57: SINGLE FAM RES. | F57: 643451 | G57: 400126 | H57: YES | I57: YES | J57: 2021-08-26
A58: Calatlantic Title West | B58: CAL | C58: MCCARRAN | D58: LH | E58: SINGLE FAM RES. | F58: 631882 | G58: 468467 | H58: YES | I58: YES | J58: 2021-02-26
A59: Calatlantic Title West | B59: CAL | C59: MCCARRAN | D59: LH | E59: SINGLE FAM RES. | F59: 629122 | G59: 360188 | H59: YES | I59: YES | J59: 2021-01-26
A60: Calatlantic Title West | B60: CAL | C60: MCCARRAN | D60: LH | E60: SINGLE FAM RES. | F60: 637457 | G60: 458130 | H60: NO | I60: YES | J60: 2021-05-17
A61: Calatlantic Title West | B61: CAL | C61: MCCARRAN | D61: LH | E61: SINGLE FAM RES. | F61: 629058 | G61: 377463 | H61: YES | I61: YES | J61: 2021-01-25
A62: Calatlantic Title West | B62: CAL | C62: MCCARRAN | D62: LH | E62: SINGLE FAM RES. | F62: 646380 | G62: 520253 | H62: YES | I62: YES | J62: 2021-10-20
A63: Calatlantic Title West | B63: CAL | C63: MCCARRAN | D63: LH | E63: SINGLE FAM RES. | F63: 647962 | G63: 518357 | H63: YES | I63: YES | J63: 2021-11-10
A64: Calatlantic Title West | B64: CAL | C64: MCCARRAN | D64: LH | E64: SINGLE FAM RES. | F64: 650250 | G64: 446778 | H64: YES | I64: YES | J64: 2021-12-22
A65: Calatlantic Title West | B65: CAL | C65: MCCARRAN | D65: LH | E65: SINGLE FAM RES. | F65: 648085 | G65: 461488 | H65: YES | I65: YES | J65: 2021-11-12
A66: Calatlantic Title West | B66: CAL | C66: MCCARRAN | D66: LH | E66: SINGLE FAM RES. | F66: 637166 | G66: 457084 | H66: YES | I66: YES | J66: 2021-05-12
A67: Calatlantic Title West | B67: CAL | C67: MCCARRAN | D67: LH | E67: SINGLE FAM RES. | F67: 632427 | G67: 471036 | H67: YES | I67: YES | J67: 2021-03-08
A68: Calatlantic Title West | B68: CAL | C68: MCCARRAN | D68: LH | E68: SINGLE FAM RES. | F68: 637268 | G68: 421930 | H68: YES | I68: YES | J68: 2021-05-13
A69: Calatlantic Title West | B69: CAL | C69: MCCARRAN | D69: LH | E69: SINGLE FAM RES. | F69: 648887 | G69: 469950 | H69: YES | I69: YES | J69: 2021-11-29
A70: Calatlantic Title West | B70: CAL | C70: MCCARRAN | D70: LH | E70: SINGLE FAM RES. | F70: 640787 | G70: 451934 | H70: YES | I70: YES | J70: 2021-07-09
A71: Calatlantic Title West | B71: CAL | C71: MCCARRAN | D71: LH | E71: SINGLE FAM RES. | F71: 631552 | G71: 421950 | H71: YES | I71: YES | J71: 2021-02-23
A72: Calatlantic Title West | B72: CAL | C72: MCCARRAN | D72: LH | E72: SINGLE FAM RES. | F72: 643174 | G72: 480341 | H72: YES | I72: YES | J72: 2021-08-23
A73: Calatlantic Title West | B73: CAL | C73: MCCARRAN | D73: LH | E73: SINGLE FAM RES. | F73: 643290 | G73: 516907 | H73: YES | I73: YES | J73: 2021-08-24
A74: Calatlantic Title West | B74: CAL | C74: MCCARRAN | D74: LH | E74: SINGLE FAM RES. | F74: 648486 | G74: 537534 | H74: YES | I74: YES | J74: 2021-11-19
A75: Calatlantic Title West | B75: CAL | C75: MCCARRAN | D75: LH | E75: SINGLE FAM RES. | F75: 642666 | G75: 470231 | H75: NO | I75: YES | J75: 2021-08-12
A76: Calatlantic Title West | B76: CAL | C76: MCCARRAN | D76: LH | E76: SINGLE FAM RES. | F76: 642256 | G76: 403483 | H76: YES | I76: YES | J76: 2021-08-05
A77: Calatlantic Title West | B77: CAL | C77: MCCARRAN | D77: LH | E77: SINGLE FAM RES. | F77: 638152 | G77: 477179 | H77: YES | I77: YES | J77: 2021-05-27
A78: Calatlantic Title West | B78: CAL | C78: MCCARRAN | D78: LH | E78: SINGLE FAM RES. | F78: 630412 | G78: 449458 | H78: YES | I78: YES | J78: 2021-02-03
A79: Calatlantic Title West | B79: CAL | C79: MCCARRAN | D79: LH | E79: SINGLE FAM RES. | F79: 648798 | G79: 541663 | H79: YES | I79: YES | J79: 2021-11-24
A80: Calatlantic Title West | B80: CAL | C80: MCCARRAN | D80: LH | E80: SINGLE FAM RES. | F80: 646237 | G80: 461173 | H80: YES | I80: YES | J80: 2021-10-18
A81: Calatlantic Title West | B81: CAL | C81: MCCARRAN | D81: LH | E81: SINGLE FAM RES. | F81: 642659 | G81: 450197 | H81: YES | I81: YES | J81: 2021-08-12
A82: Calatlantic Title West | B82: CAL | C82: MCCARRAN | D82: LH | E82: SINGLE FAM RES. | F82: 628005 | G82: 358717 | H82: NO | I82: YES | J82: 2021-01-05
A83: Calatlantic Title West | B83: CAL | C83: MCCARRAN | D83: LH | E83: SINGLE FAM RES. | F83: 649000 | G83: 541611 | H83: YES | I83: YES | J83: 2021-11-30
A84: Calatlantic Title West | B84: CAL | C84: MCCARRAN | D84: LH | E84: SINGLE FAM RES. | F84: 650606 | G84: 493420 | H84: YES | I84: YES | J84: 2021-12-29
A85: Calatlantic Title West | B85: CAL | C85: MCCARRAN | D85: LH | E85: SINGLE FAM RES. | F85: 649034 | G85: 483468 | H85: YES | I85: YES | J85: 2021-11-30
A86: Calatlantic Title West | B86: CAL | C86: MCCARRAN | D86: LH | E86: SINGLE FAM RES. | F86: 630964 | G86: 358873 | H86: YES | I86: YES | J86: 2021-02-12
A87: Calatlantic Title West | B87: CAL | C87: MCCARRAN | D87: LH | E87: SINGLE FAM RES. | F87: 638999 | G87: 376032 | H87: YES | I87: YES | J87: 2021-06-11
A88: Calatlantic Title West | B88: CAL | C88: MCCARRAN | D88: LH | E88: SINGLE FAM RES. | F88: 646027 | G88: 534073 | H88: YES | I88: YES | J88: 2021-10-13
A89: Calatlantic Title West | B89: CAL | C89: MCCARRAN | D89: LH | E89: SINGLE FAM RES. | F89: 646086 | G89: 520097 | H89: NO | I89: YES | J89: 2021-10-14
A90: Calatlantic Title West | B90: CAL | C90: MCCARRAN | D90: LH | E90: SINGLE FAM RES. | F90: 630054 | G90: 451993 | H90: YES | I90: YES | J90: 2021-01-29
A91: Calatlantic Title West | B91: CAL | C91: MCCARRAN | D91: LH | E91: SINGLE FAM RES. | F91: 640033 | G91: 477677 | H91: YES | I91: YES | J91: 2021-06-28
A92: Calatlantic Title West | B92: CAL | C92: MCCARRAN | D92: LH | E92: SINGLE FAM RES. | F92: 639321 | G92: 473205 | H92: YES | I92: YES | J92: 2021-06-16
A93: Calatlantic Title West | B93: CAL | C93: MCCARRAN | D93: LH | E93: SINGLE FAM RES. | F93: 640996 | G93: 445591 | H93: YES | I93: YES | J93: 2021-07-14
A94: Calatlantic Title West | B94: CAL | C94: MCCARRAN | D94: LH | E94: SINGLE FAM RES. | F94: 639236 | G94: 399758 | H94: YES | I94: YES | J94: 2021-06-15
A95: Calatlantic Title West | B95: CAL | C95: MCCARRAN | D95: LH | E95: SINGLE FAM RES. | F95: 636122 | G95: 396664 | H95: YES | I95: YES | J95: 2021-04-26
A96: Calatlantic Title West | B96: CAL | C96: MCCARRAN | D96: LH | E96: SINGLE FAM RES. | F96: 630549 | G96: 375002 | H96: YES | I96: YES | J96: 2021-02-05
A97: Calatlantic Title West | B97: CAL | C97: MCCARRAN | D97: LH | E97: SINGLE FAM RES. | F97: 639452 | G97: 372279 | H97: YES | I97: YES | J97: 2021-06-18
A98: Calatlantic Title West | B98: CAL | C98: MCCARRAN | D98: LH | E98: SINGLE FAM RES. | F98: 635869 | G98: 391664 | H98: YES | I98: YES | J98: 2021-04-21
A99: Calatlantic Title West | B99: CAL | C99: MCCARRAN | D99: LH | E99: SINGLE FAM RES. | F99: 646580 | G99: 424950 | H99: YES | I99: YES | J99: 2021-10-22
A100: Calatlantic Title West | B100: CAL | C100: MCCARRAN | D100: LH | E100: SINGLE FAM RES. | F100: 634893 | G100: 475090 | H100: YES | I100: YES | J100: 2021-04-07
A101: Calatlantic Title West | B101: CAL | C101: MCCARRAN | D101: LH | E101: SINGLE FAM RES. | F101: 634730 | G101: 359141 | H101: YES | I101: YES | J101: 2021-04-05
A102: First American Title | B102: FA | C102: UNKNOWN | D102: UNK | E102: VACANT LAND | F102: 631521 | G102: 1397000 | H102: NO | I102: YES | J102: 2021-02-23
A103: First American Title | B103: FA | C103: MINDEN | D103: ET | E103: MOBILE HOME | F103: 648915 | G103: 250000 | H103: NO | I103: YES | J103: 2021-11-29
A104: First American Title | B104: FA | C104: MINDEN | D104: MK | E104: SINGLE FAM RES. | F104: 647612 | G104: 715000 | H104: NO | I104: YES | J104: 2021-11-05
A105: First American Title | B105: FA | C105: SPARKS | D105: JP | E105: MOBILE HOME | F105: 631546 | G105: 193000 | H105: YES | I105: YES | J105: 2021-02-23
A106: First American Title | B106: FA | C106: KIETZKE | D106: TM | E106: SINGLE FAM RES. | F106: 635393 | G106: 529000 | H106: NO | I106: YES | J106: 2021-04-14
A107: First American Title | B107: FA | C107: MINDEN | D107: MK | E107: SINGLE FAM RES. | F107: 633268 | G107: 690000 | H107: NO | I107: YES | J107: 2021-03-19
A108: First American Title | B108: FA | C108: SPARKS | D108: JP | E108: VACANT LAND | F108: 637025 | G108: 20000 | H108: NO | I108: YES | J108: 2021-05-10
A109: First American Title | B109: FA | C109: SPARKS | D109: JP | E109: SINGLE FAM RES. | F109: 647580 | G109: 429513 | H109: YES | I109: YES | J109: 2021-11-04
A110: First American Title | B110: FA | C110: SPARKS | D110: CY | E110: VACANT LAND | F110: 633209 | G110: 66000 | H110: NO | I110: YES | J110: 2021-03-18
A111: First American Title | B111: FA | C111: KIETZKE | D111: MLR | E111: VACANT LAND | F111: 635375 | G111: 2675000 | H111: NO | I111: YES | J111: 2021-04-14
A112: First American Title | B112: FA | C112: SPARKS | D112: JP | E112: MOBILE HOME | F112: 640810 | G112: 259000 | H112: NO | I112: YES | J112: 2021-07-09
A113: First American Title | B113: FA | C113: SPARKS | D113: JP | E113: VACANT LAND | F113: 632611 | G113: 10000 | H113: NO | I113: YES | J113: 2021-03-10
A114: First American Title | B114: FA | C114: KIETZKE | D114: MLR | E114: VACANT LAND | F114: 640332 | G114: 677000 | H114: NO | I114: YES | J114: 2021-06-30
A115: First American Title | B115: FA | C115: KIETZKE | D115: TK | E115: SINGLE FAM RES. | F115: 632777 | G115: 390000 | H115: NO | I115: YES | J115: 2021-03-12
A116: First American Title | B116: FA | C116: SPARKS | D116: JP | E116: VACANT LAND | F116: 632603 | G116: 27500 | H116: NO | I116: YES | J116: 2021-03-10
A117: First American Title | B117: FA | C117: SPARKS | D117: JP | E117: SINGLE FAM RES. | F117: 632961 | G117: 493007 | H117: YES | I117: YES | J117: 2021-03-15
A118: First American Title | B118: FA | C118: SPARKS | D118: JP | E118: MOBILE HOME | F118: 641360 | G118: 244900 | H118: NO | I118: YES | J118: 2021-07-21
A119: First American Title | B119: FA | C119: MINDEN | D119: MK | E119: SINGLE FAM RES. | F119: 641060 | G119: 600000 | H119: NO | I119: YES | J119: 2021-07-15
A120: First American Title | B120: FA | C120: SPARKS | D120: JP | E120: MOBILE HOME | F120: 641021 | G120: 305000 | H120: NO | I120: YES | J120: 2021-07-14
A121: First American Title | B121: FA | C121: KIETZKE | D121: MH | E121: SINGLE FAM RES. | F121: 630469 | G121: 498200 | H121: NO | I121: YES | J121: 2021-02-04
A122: First American Title | B122: FA | C122: SPARKS | D122: JP | E122: SINGLE FAM RES. | F122: 631933 | G122: 365000 | H122: NO | I122: YES | J122: 2021-02-26
A123: First American Title | B123: FA | C123: MINDEN | D123: MK | E123: VACANT LAND | F123: 632056 | G123: 68500 | H123: NO | I123: YES | J123: 2021-03-02
A124: First American Title | B124: FA | C124: SPARKS | D124: JP | E124: SINGLE FAM RES. | F124: 648906 | G124: 386473 | H124: NO | I124: YES | J124: 2021-11-29
A125: First American Title | B125: FA | C125: MINDEN | D125: MK | E125: VACANT LAND | F125: 636784 | G125: 75000 | H125: NO | I125: YES | J125: 2021-05-05
A126: First American Title | B126: FA | C126: KIETZKE | D126: MLR | E126: VACANT LAND | F126: 646930 | G126: 250000 | H126: NO | I126: YES | J126: 2021-10-28
A127: First American Title | B127: FA | C127: SPARKS | D127: JP | E127: VACANT LAND | F127: 632632 | G127: 19000 | H127: NO | I127: YES | J127: 2021-03-10
A128: First American Title | B128: FA | C128: KIETZKE | D128: NMP | E128: SINGLE FAM RES. | F128: 646924 | G128: 330000 | H128: NO | I128: YES | J128: 2021-10-28
A129: First American Title | B129: FA | C129: KIETZKE | D129: TK | E129: SINGLE FAM RES. | F129: 647473 | G129: 427000 | H129: NO | I129: YES | J129: 2021-11-03
A130: First American Title | B130: FA | C130: SPARKS | D130: CY | E130: SINGLE FAM RES. | F130: 637989 | G130: 305000 | H130: NO | I130: YES | J130: 2021-05-25
A131: First American Title | B131: FA | C131: MINDEN | D131: MK | E131: SINGLE FAM RES. | F131: 648444 | G131: 155000 | H131: NO | I131: YES | J131: 2021-11-19
A132: First American Title | B132: FA | C132: INCLINE | D132: VD | E132: VACANT LAND | F132: 634914 | G132: 25000 | H132: NO | I132: YES | J132: 2021-04-07
A133: First American Title | B133: FA | C133: LAS VEGAS | D133: NCS | E133: COMMERCIAL | F133: 637800 | G133: 395000 | H133: NO | I133: YES | J133: 2021-05-21
A134: First American Title | B134: FA | C134: SPARKS | D134: CY | E134: SINGLE FAM RES. | F134: 639181 | G134: 337500 | H134: NO | I134: YES | J134: 2021-06-15
A135: First American Title | B135: FA | C135: KIETZKE | D135: MLR | E135: COMMERCIAL | F135: 645359 | G135: 160000 | H135: NO | I135: YES | J135: 2021-09-30
A136: First American Title | B136: FA | C136: MINDEN | D136: MK | E136: SINGLE FAM RES. | F136: 639487 | G136: 390000 | H136: NO | I136: YES | J136: 2021-06-21
A137: First American Title | B137: FA | C137: MINDEN | D137: ET | E137: SINGLE FAM RES. | F137: 639498 | G137: 249000 | H137: NO | I137: YES | J137: 2021-06-21
A138: First American Title | B138: FA | C138: MINDEN | D138: ET | E138: VACANT LAND | F138: 639567 | G138: 65000 | H138: NO | I138: YES | J138: 2021-06-21
A139: First American Title | B139: FA | C139: LAS VEGAS | D139: RC | E139: VACANT LAND | F139: 639695 | G139: 11854 | H139: NO | I139: YES | J139: 2021-06-23
A140: First American Title | B140: FA | C140: SPARKS | D140: JP | E140: MOBILE HOME | F140: 643100 | G140: 269000 | H140: NO | I140: YES | J140: 2021-08-20
A141: First American Title | B141: FA | C141: SPARKS | D141: CY | E141: SINGLE FAM RES. | F141: 634497 | G141: 328000 | H141: NO | I141: YES | J141: 2021-04-01
A142: First American Title | B142: FA | C142: KIETZKE | D142: TM | E142: SINGLE FAM RES. | F142: 645187 | G142: 410000 | H142: NO | I142: YES | J142: 2021-09-29
A143: First American Title | B143: FA | C143: MINDEN | D143: MK | E143: SINGLE FAM RES. | F143: 636713 | G143: 438000 | H143: NO | I143: YES | J143: 2021-05-04
A144: First American Title | B144: FA | C144: MINDEN | D144: MK | E144: SINGLE FAM RES. | F144: 646284 | G144: 710000 | H144: NO | I144: YES | J144: 2021-10-19
A145: First American Title | B145: FA | C145: KIETZKE | D145: MLR | E145: VACANT LAND | F145: 638165 | G145: 3750000 | H145: NO | I145: YES | J145: 2021-05-27
A146: First American Title | B146: FA | C146: KIETZKE | D146: TK | E146: SINGLE FAM RES. | F146: 638194 | G146: 180000 | H146: NO | I146: YES | J146: 2021-05-28
A147: First American Title | B147: FA | C147: KIETZKE | D147: MH | E147: VACANT LAND | F147: 638226 | G147: 23000 | H147: NO | I147: YES | J147: 2021-05-28
A148: First American Title | B148: FA | C148: SPARKS | D148: CY | E148: MOBILE HOME | F148: 638268 | G148: 288020 | H148: NO | I148: YES | J148: 2021-05-28
A149: First American Title | B149: FA | C149: MINDEN | D149: ET | E149: SINGLE FAM RES. | F149: 649755 | G149: 400000 | H149: NO | I149: YES | J149: 2021-12-15
A150: First American Title | B150: FA | C150: SPARKS | D150: JP | E150: MOBILE HOME | F150: 640441 | G150: 292000 | H150: NO | I150: YES | J150: 2021-07-02
A151: First American Title | B151: FA | C151: KIETZKE | D151: NMP | E151: SINGLE FAM RES. | F151: 649722 | G151: 484500 | H151: NO | I151: YES | J151: 2021-12-15
A152: First American Title | B152: FA | C152: SPARKS | D152: JP | E152: SINGLE FAM RES. | F152: 649717 | G152: 717500 | H152: NO | I152: YES | J152: 2021-12-15
A153: First American Title | B153: FA | C153: SPARKS | D153: CY | E153: SINGLE FAM RES. | F153: 645776 | G153: 296518 | H153: NO | I153: YES | J153: 2021-10-08
A154: First American Title | B154: FA | C154: KIETZKE | D154: KS | E154: SINGLE FAM RES. | F154: 646161 | G154: 418000 | H154: NO | I154: YES | J154: 2021-10-15
A155: First American Title | B155: FA | C155: MINDEN | D155: ET | E155: MOBILE HOME | F155: 645240 | G155: 299000 | H155: NO | I155: YES | J155: 2021-09-30
A156: First American Title | B156: FA | C156: SPARKS | D156: JP | E156: SINGLE FAM RES. | F156: 645937 | G156: 530000 | H156: NO | I156: YES | J156: 2021-10-12
A157: First American Title | B157: FA | C157: OMAHA, NE | D157: NCS | E157: APARTMENT BLDG. | F157: 636236 | G157: 2775000 | H157: NO | I157: YES | J157: 2021-04-27
A158: First American Title | B158: FA | C158: SPARKS | D158: CY | E158: VACANT LAND | F158: 636311 | G158: 123940 | H158: NO | I158: YES | J158: 2021-04-28
A159: First American Title | B159: FA | C159: SPARKS | D159: CY | E159: SINGLE FAM RES. | F159: 635992 | G159: 275000 | H159: NO | I159: YES | J159: 2021-04-23
A160: First American Title | B160: FA | C160: KIETZKE | D160: TM | E160: SINGLE FAM RES. | F160: 633728 | G160: 325500 | H160: NO | I160: YES | J160: 2021-03-25
A161: First American Title | B161: FA | C161: SPARKS | D161: JP | E161: SINGLE FAM RES. | F161: 633829 | G161: 493808 | H161: YES | I161: YES | J161: 2021-03-26
A162: First American Title | B162: FA | C162: KIETZKE | D162: PB | E162: VACANT LAND | F162: 648044 | G162: 84000 | H162: NO | I162: YES | J162: 2021-11-12
A163: First American Title | B163: FA | C163: KIETZKE | D163: TK | E163: SINGLE FAM RES. | F163: 648060 | G163: 350000 | H163: NO | I163: YES | J163: 2021-11-12
A164: First American Title | B164: FA | C164: KIETZKE | D164: TK | E164: VACANT LAND | F164: 648077 | G164: 67000 | H164: NO | I164: YES | J164: 2021-11-12
A165: First American Title | B165: FA | C165: MINDEN | D165: MK | E165: VACANT LAND | F165: 648097 | G165: 69900 | H165: NO | I165: YES | J165: 2021-11-12
A166: First American Title | B166: FA | C166: KIETZKE | D166: TM | E166: SINGLE FAM RES. | F166: 637163 | G166: 482500 | H166: NO | I166: YES | J166: 2021-05-12
A167: First American Title | B167: FA | C167: SPARKS | D167: JP | E167: SINGLE FAM RES. | F167: 634628 | G167: 546835 | H167: YES | I167: YES | J167: 2021-04-02
A168: First American Title | B168: FA | C168: SPARKS | D168: JP | E168: SINGLE FAM RES. | F168: 637253 | G168: 380000 | H168: NO | I168: YES | J168: 2021-05-13
A169: First American Title | B169: FA | C169: MINDEN | D169: MK | E169: SINGLE FAM RES. | F169: 633353 | G169: 249000 | H169: NO | I169: YES | J169: 2021-03-22
A170: First American Title | B170: FA | C170: KIETZKE | D170: TM | E170: MOBILE HOME | F170: 648367 | G170: 100000 | H170: NO | I170: YES | J170: 2021-11-18
A171: First American Title | B171: FA | C171: MINDEN | D171: MK | E171: SINGLE FAM RES. | F171: 642596 | G171: 230000 | H171: NO | I171: YES | J171: 2021-08-11
A172: First American Title | B172: FA | C172: MINDEN | D172: ET | E172: VACANT LAND | F172: 642919 | G172: 35000 | H172: NO | I172: YES | J172: 2021-08-18
A173: First American Title | B173: FA | C173: MINDEN | D173: MK | E173: VACANT LAND | F173: 642979 | G173: 119750 | H173: NO | I173: YES | J173: 2021-08-18
A174: First American Title | B174: FA | C174: KIETZKE | D174: MH | E174: VACANT LAND | F174: 634013 | G174: 110000 | H174: NO | I174: YES | J174: 2021-03-30
A175: First American Title | B175: FA | C175: KIETZKE | D175: MH | E175: SINGLE FAM RES. | F175: 634358 | G175: 286000 | H175: NO | I175: YES | J175: 2021-03-31
A176: First American Title | B176: FA | C176: SPARKS | D176: CY | E176: VACANT LAND | F176: 643794 | G176: 150000 | H176: NO | I176: YES | J176: 2021-09-01
A177: First American Title | B177: FA | C177: MINDEN | D177: MK | E177: SINGLE FAM RES. | F177: 641769 | G177: 505000 | H177: NO | I177: YES | J177: 2021-07-28
A178: First American Title | B178: FA | C178: SPARKS | D178: CY | E178: SINGLE FAM RES. | F178: 643709 | G178: 355000 | H178: NO | I178: YES | J178: 2021-08-31
A179: First American Title | B179: FA | C179: MINDEN | D179: MK | E179: SINGLE FAM RES. | F179: 643693 | G179: 660000 | H179: NO | I179: YES | J179: 2021-08-31
A180: First American Title | B180: FA | C180: KIETZKE | D180: TM | E180: SINGLE FAM RES. | F180: 636483 | G180: 390000 | H180: NO | I180: YES | J180: 2021-04-30
A181: First American Title | B181: FA | C181: KIETZKE | D181: TK | E181: SINGLE FAM RES. | F181: 648181 | G181: 400000 | H181: NO | I181: YES | J181: 2021-11-15
A182: First American Title | B182: FA | C182: SPARKS | D182: CY | E182: SINGLE FAM RES. | F182: 650228 | G182: 355900 | H182: NO | I182: YES | J182: 2021-12-22
A183: First American Title | B183: FA | C183: LAS VEGAS | D183: NCS | E183: COMMERCIAL | F183: 635204 | G183: 435000 | H183: NO | I183: YES | J183: 2021-04-12
A184: First American Title | B184: FA | C184: LAS VEGAS | D184: NCS | E184: VACANT LAND | F184: 642264 | G184: 49950 | H184: NO | I184: YES | J184: 2021-08-05
A185: First American Title | B185: FA | C185: MINDEN | D185: MK | E185: MOBILE HOME | F185: 632367 | G185: 238000 | H185: NO | I185: YES | J185: 2021-03-05
A186: First American Title | B186: FA | C186: MINDEN | D186: MK | E186: VACANT LAND | F186: 632407 | G186: 160000 | H186: NO | I186: YES | J186: 2021-03-08
A187: First American Title | B187: FA | C187: MINDEN | D187: MK | E187: VACANT LAND | F187: 629138 | G187: 173000 | H187: NO | I187: YES | J187: 2021-01-26
A188: First American Title | B188: FA | C188: MINDEN | D188: MK | E188: SINGLE FAM RES. | F188: 644511 | G188: 402000 | H188: NO | I188: YES | J188: 2021-09-17
A189: First American Title | B189: FA | C189: SPARKS | D189: JP | E189: SINGLE FAM RES. | F189: 650255 | G189: 332000 | H189: NO | I189: YES | J189: 2021-12-22
A190: First American Title | B190: FA | C190: INCLINE | D190: VD | E190: SINGLE FAM RES. | F190: 648603 | G190: 350000 | H190: NO | I190: YES | J190: 2021-11-22
A191: First American Title | B191: FA | C191: KIETZKE | D191: TK | E191: SINGLE FAM RES. | F191: 631201 | G191: 355000 | H191: NO | I191: YES | J191: 2021-02-17
A192: First American Title | B192: FA | C192: KIETZKE | D192: TK | E192: SINGLE FAM RES. | F192: 631089 | G192: 285000 | H192: NO | I192: YES | J192: 2021-02-16
A193: First American Title | B193: FA | C193: KIETZKE | D193: KS | E193: SINGLE FAM RES. | F193: 638442 | G193: 355000 | H193: NO | I193: YES | J193: 2021-06-02
A194: First American Title | B194: FA | C194: MINDEN | D194: MK | E194: COMMERCIAL | F194: 649314 | G194: 379900 | H194: NO | I194: YES | J194: 2021-12-06
A195: First American Title | B195: FA | C195: KIETZKE | D195: TM | E195: SINGLE FAM RES. | F195: 649239 | G195: 326000 | H195: NO | I195: YES | J195: 2021-12-03
A196: First American Title | B196: FA | C196: SPARKS | D196: JP | E196: SINGLE FAM RES. | F196: 642350 | G196: 265000 | H196: NO | I196: YES | J196: 2021-08-06
A197: First American Title | B197: FA | C197: LOS ANGELES | D197: NCS | E197: COMMERCIAL | F197: 650111 | G197: 21000000 | H197: NO | I197: YES | J197: 2021-12-21
A198: First American Title | B198: FA | C198: MINDEN | D198: MK | E198: MOBILE HOME | F198: 638568 | G198: 227500 | H198: NO | I198: YES | J198: 2021-06-04
A199: First American Title | B199: FA | C199: INCLINE | D199: VD | E199: COMMERCIAL | F199: 632316 | G199: 160000 | H199: NO | I199: YES | J199: 2021-03-05
A200: First American Title | B200: FA | C200: SPARKS | D200: CY | E200: SINGLE FAM RES. | F200: 630960 | G200: 310000 | H200: NO | I200: YES | J200: 2021-02-12
... 2630 more rows

Sheet LOANS_LIST (hidden)
A1: FULLNAME | B1: RECBY | C1: TYPELOAN | D1: APN | E1: DOCNUM | F1: AMOUNT | G1: RECDATE | H1: LENDER | L1: 1411
A2: Acme Title and Escrow | B2: ACT | C2: CONVENTIONAL | D2: 029-463-12 | E2: 628751 | F2: 173000 | G2: 2021-01-19 | H2: BAY EQUITY LLC
A3: Acme Title and Escrow | B3: ACT | C3: HOME EQUITY | D3: 022-351-06 | E3: 628304 | F3: 10127 | G3: 2021-01-11 | H3: NEVADA RURAL HOUSING AUTHORITY
A4: Acme Title and Escrow | B4: ACT | C4: CONVENTIONAL | D4: 022-042-12 | E4: 634953 | F4: 252200 | G4: 2021-04-08 | H4: ISERVE RESIDENTIAL LENDING LLC
A5: Acme Title and Escrow | B5: ACT | C5: VA | D5: 020-893-11 | E5: 647604 | F5: 103600 | G5: 2021-11-05 | H5: FINANCE OF AMERICA MORTGAGE LLC
A6: Acme Title and Escrow | B6: ACT | C6: CONVENTIONAL | D6: 019-952-14 | E6: 633931 | F6: 393000 | G6: 2021-03-29 | H6: WOLFE FINANCIAL INC
A7: Acme Title and Escrow | B7: ACT | C7: CONVENTIONAL | D7: 020-603-19 | E7: 649596 | F7: 287500 | G7: 2021-12-13 | H7: CALCON MUTUAL MORTGAGE LLC
A8: Acme Title and Escrow | B8: ACT | C8: CONVENTIONAL | D8: 020-862-16 | E8: 643592 | F8: 107700 | G8: 2021-08-30 | H8: GREATER NEVADA LLC
A9: Acme Title and Escrow | B9: ACT | C9: CONVENTIONAL | D9: 019-482-19 | E9: 639016 | F9: 61000 | G9: 2021-06-11 | H9: WELLS FARGO BANK NA
A10: Acme Title and Escrow | B10: ACT | C10: CONVENTIONAL | D10: 019-883-13 | E10: 638990 | F10: 213000 | G10: 2021-06-11 | H10: INFINITY EQUITY GROUP LLC
A11: Acme Title and Escrow | B11: ACT | C11: CONVENTIONAL | D11: 021-051-25 | E11: 641185 | F11: 57000 | G11: 2021-07-16 | H11: GREATER NEVADA MORTGAGE
A12: Acme Title and Escrow | B12: ACT | C12: FHA | D12: 017-252-15 | E12: 643212 | F12: 84452 | G12: 2021-08-23 | H12: FINANCE OF AMERICA MORTGAGE LLC
A13: Archer Title and Escrow | B13: ATE | C13: CONVENTIONAL | D13: 022-023-02 | E13: 634847 | F13: 324000 | G13: 2021-04-07 | H13: PRIMELENDING
A14: Archer Title and Escrow | B14: ATE | C14: CONVENTIONAL | D14: 019-454-18 | E14: 632003 | F14: 253068 | G14: 2021-03-01 | H14: GUILD MORTGAGE CO LLC
A15: Archer Title and Escrow | B15: ATE | C15: CONVENTIONAL | D15: 020-841-09 | E15: 640146 | F15: 139000 | G15: 2021-06-29 | H15: PRIMELENDING
A16: Archer Title and Escrow | B16: ATE | C16: FHA | D16: 020-726-12 | E16: 649283 | F16: 540000 | G16: 2021-12-06 | H16: PHH MORTGAGE CORPORATION
A17: Archer Title and Escrow | B17: ATE | C17: FHA | D17: 019-454-10 | E17: 646386 | F17: 585000 | G17: 2021-10-20 | H17: MORTGAGE ELECTRONIC REGISTRATION SYSTEMS INC
A18: Archer Title and Escrow | B18: ATE | C18: CONVENTIONAL | D18: 019-142-06 | E18: 634331 | F18: 433800 | G18: 2021-03-31 | H18: MOVEMENT MORTGAGE LLC
A19: Archer Title and Escrow | B19: ATE | C19: CONVENTIONAL | D19: 029-581-03 | E19: 639596 | F19: 280000 | G19: 2021-06-22 | H19: NEW AMERICAN FUNDING
A20: Archer Title and Escrow | B20: ATE | C20: FHA | D20: 022-522-25 | E20: 633346 | F20: 270747 | G20: 2021-03-22 | H20: MOVEMENT MORTGAGE LLC
A21: Archer Title and Escrow | B21: ATE | C21: VA | D21: 015-491-23 | E21: 643474 | F21: 533655 | G21: 2021-08-27 | H21: BROKER SOLUTIONS INC
A22: Archer Title and Escrow | B22: ATE | C22: VA | D22: 021-481-32 | E22: 649994 | F22: 399896 | G22: 2021-12-20 | H22: NEW AMERICAN FUNDING
A23: Archer Title and Escrow | B23: ATE | C23: FHA | D23: 015-071-29 | E23: 628086 | F23: 167359 | G23: 2021-01-07 | H23: LENDUS LLC
A24: First American Title | B24: FA | C24: CONVENTIONAL | D24: 022-311-17 | E24: 635261 | F24: 193000 | G24: 2021-04-13 | H24: SUMMIT FUNDING INC
A25: First American Title | B25: FA | C25: HARD MONEY | D25: 022-325-11 | E25: 644054 | F25: 175000 | G25: 2021-09-08 | H25: MONDEEL ELIZABETH J
A26: First American Title | B26: FA | C26: CONVENTIONAL | D26: 019-802-16 | E26: 638295 | F26: 180054 | G26: 2021-05-28 | H26: LONE MORTGAGE INC
A27: First American Title | B27: FA | C27: CONVENTIONAL | D27: 020-912-07 | E27: 643746 | F27: 175000 | G27: 2021-08-31 | H27: SIERRA PACIFIC MORTGAGE CO INC
A28: First American Title | B28: FA | C28: CONVENTIONAL | D28: 015-321-01 | E28: 643736 | F28: 164000 | G28: 2021-08-31 | H28: LAND HOME FINANCIAL SERVICES INC
A29: First American Title | B29: FA | C29: CREDIT LINE | D29: 016-402-09 | E29: 638300 | F29: 2000000 | G29: 2021-05-28 | H29: UMPQUA BANK
A30: First American Title | B30: FA | C30: CONVENTIONAL | D30: 017-075-17 | E30: 632139 | F30: 222323 | G30: 2021-03-03 | H30: AMERICAN PACIFIC MORTGAGE CORP
A31: First American Title | B31: FA | C31: CONVENTIONAL | D31: 019-481-15 | E31: 644132 | F31: 127000 | G31: 2021-09-09 | H31: PRIMELENDING
A32: First American Title | B32: FA | C32: CONVENTIONAL | D32: 029-602-08 | E32: 644166 | F32: 167350 | G32: 2021-09-09 | H32: UNITED WHOLESALE MORTGAGE LLC
A33: First American Title | B33: FA | C33: CONVENTIONAL | D33: 029-172-12 | E33: 631837 | F33: 163000 | G33: 2021-02-26 | H33: UNITED WHOLESALE MORTGAGE LLC
A34: First American Title | B34: FA | C34: CONSTRUCTION | D34: 020-531-11 | E34: 645422 | F34: 299000 | G34: 2021-10-01 | H34: HERITAGE BANK OF NEVADA
A35: First American Title | B35: FA | C35: CONVENTIONAL | D35: 010-601-15 | E35: 631886 | F35: 491640 | G35: 2021-02-26 | H35: GUILD MORTGAGE CO LLC
A36: First American Title | B36: FA | C36: FHA | D36: 009-091-09 | E36: 648125 | F36: 283057 | G36: 2021-11-12 | H36: GUILD MORTGAGE COMPANY LLC
A37: First American Title | B37: FA | C37: CONVENTIONAL | D37: 022-401-04 | E37: 644138 | F37: 388800 | G37: 2021-09-09 | H37: GUILD MORTGAGE COMPANY LLC
A38: First American Title | B38: FA | C38: CREDIT LINE | D38: 016-221-39 | E38: 628524 | F38: 50000 | G38: 2021-01-14 | H38: AMERICA FIRST FEDERAL CREDIT UNION
A39: First American Title | B39: FA | C39: COMMERCIAL | D39: 016-162-43 | E39: 646910 | F39: 1100000 | G39: 2021-10-28 | H39: UMPQUA BANK
A40: First American Title | B40: FA | C40: VA | D40: 017-443-12 | E40: 646885 | F40: 117915 | G40: 2021-10-28 | H40: GUILD MORTGAGE COMPANY LLC
A41: First American Title | B41: FA | C41: CONVENTIONAL | D41: 029-341-05 | E41: 636225 | F41: 189000 | G41: 2021-04-27 | H41: UNITED WHOLESALE MORTGAGE LLC
A42: First American Title | B42: FA | C42: CONVENTIONAL | D42: 010-331-26 | E42: 638655 | F42: 161564 | G42: 2021-06-07 | H42: GATEWAY MORTGAGE GROUP
A43: First American Title | B43: FA | C43: VA | D43: 022-301-16 | E43: 636207 | F43: 156000 | G43: 2021-04-27 | H43: SUMMIT FUNDING INC
A44: First American Title | B44: FA | C44: CONVENTIONAL | D44: 019-142-08 | E44: 628323 | F44: 300000 | G44: 2021-01-11 | H44: SUMMIT FUNDING INC
A45: First American Title | B45: FA | C45: CONVENTIONAL | D45: 020-671-05 | E45: 643301 | F45: 331000 | G45: 2021-08-24 | H45: GUILD MORTGAGE COMPANY LLC
A46: First American Title | B46: FA | C46: VA | D46: 029-092-08 | E46: 643334 | F46: 279497 | G46: 2021-08-25 | H46: GUILD MORTGAGE COMPANY LLC
A47: First American Title | B47: FA | C47: FHA | D47: 020-636-17 | E47: 628458 | F47: 249704 | G47: 2021-01-13 | H47: AMERICAN PACIFIC MORTGAGE CORPORATION
A48: First American Title | B48: FA | C48: HOME EQUITY | D48: 020-636-17 | E48: 628459 | F48: 4994 | G48: 2021-01-13 | H48: NEVADA RURAL HOUSING AUTHORITY
A49: First American Title | B49: FA | C49: CONVENTIONAL | D49: 015-761-21 | E49: 628686 | F49: 309000 | G49: 2021-01-19 | H49: GUILD MORTGAGE COMPANY LLC
A50: First American Title | B50: FA | C50: CONVENTIONAL | D50: 029-284-03 | E50: 633168 | F50: 184500 | G50: 2021-03-18 | H50: SUMMIT FUNDING INC
A51: First American Title | B51: FA | C51: CONVENTIONAL | D51: 017-021-10 | E51: 648145 | F51: 250300 | G51: 2021-11-15 | H51: GUILD MORTGAGE COMPANY LLC
A52: First American Title | B52: FA | C52: CONVENTIONAL | D52: 022-526-29 | E52: 643339 | F52: 257132 | G52: 2021-08-25 | H52: NORTHPOINTE BANK
A53: First American Title | B53: FA | C53: CONVENTIONAL | D53: 001-123-34 | E53: 643413 | F53: 120000 | G53: 2021-08-26 | H53: GUILD MORTGAGE COMPANY LLC
A54: First American Title | B54: FA | C54: CONVENTIONAL | D54: 022-463-05 | E54: 640707 | F54: 259500 | G54: 2021-07-08 | H54: CALIBER HOME LOANS INC
A55: First American Title | B55: FA | C55: CONVENTIONAL | D55: 019-032-10 | E55: 637943 | F55: 118500 | G55: 2021-05-24 | H55: NEW AMERICAN FUNDING
A56: First American Title | B56: FA | C56: CONVENTIONAL | D56: 015-381-05 | E56: 641097 | F56: 395156 | G56: 2021-07-15 | H56: ON Q FINANCIAL INC
A57: First American Title | B57: FA | C57: CONVENTIONAL | D57: 019-457-18 | E57: 648293 | F57: 220000 | G57: 2021-11-17 | H57: GUILD MORTGAGE COMPANY LLC
A58: First American Title | B58: FA | C58: CONVENTIONAL | D58: 022-022-18 | E58: 645622 | F58: 107500 | G58: 2021-10-06 | H58: TURNKEY FOUNDATION INC
A59: First American Title | B59: FA | C59: CONVENTIONAL | D59: 012-271-12 | E59: 635112 | F59: 137648 | G59: 2021-04-09 | H59: GUILD MORTGAGE COMPANY LLC
A60: First American Title | B60: FA | C60: CONVENTIONAL | D60: 022-424-19 | E60: 648232 | F60: 352000 | G60: 2021-11-16 | H60: GUILD MORTGAGE COMPANY LLC
A61: First American Title | B61: FA | C61: CONVENTIONAL | D61: 022-212-06 | E61: 638014 | F61: 310000 | G61: 2021-05-25 | H61: FREEDOM NORTHWEST CREDIT UNION
A62: First American Title | B62: FA | C62: CONVENTIONAL | D62: 029-432-17 | E62: 628513 | F62: 257000 | G62: 2021-01-14 | H62: UNITED WHOLESALE MORTGAGE LLC
A63: First American Title | B63: FA | C63: CONVENTIONAL | D63: 019-471-03 | E63: 632439 | F63: 236000 | G63: 2021-03-08 | H63: ALL WESTERN MORTGAGE INC
A64: First American Title | B64: FA | C64: CONVENTIONAL | D64: 029-461-06 | E64: 645282 | F64: 146118 | G64: 2021-09-30 | H64: GUILD MORTGAGE COMPANY LLC
A65: First American Title | B65: FA | C65: CONVENTIONAL | D65: 029-041-21 | E65: 630392 | F65: 178790 | G65: 2021-02-03 | H65: GUILD MORTGAGE CO LLC
A66: First American Title | B66: FA | C66: CONVENTIONAL | D66: 019-821-02 | E66: 640000 | F66: 238000 | G66: 2021-06-28 | H66: AMERICA FIRST FEDERAL CREDIT UNION
A67: First American Title | B67: FA | C67: CONVENTIONAL | D67: 019-792-05 | E67: 643911 | F67: 255000 | G67: 2021-09-03 | H67: ALL WESTERN MORTGAGE INC
A68: First American Title | B68: FA | C68: COMMERCIAL | D68: 016-405-13 | E68: 629934 | F68: 920000 | G68: 2021-01-28 | H68: HERITAGE BANK OF NEVADA; GLACIER BANK
A69: First American Title | B69: FA | C69: CONSTRUCTION | D69: 022-532-03 | E69: 630056 | F69: 963500 | G69: 2021-01-29 | H69: HERITAGE BANK OF NEVADA; GLACIER BANK
A70: First American Title | B70: FA | C70: CONVENTIONAL | D70: 015-081-31 | E70: 630006 | F70: 172000 | G70: 2021-01-29 | H70: AXIA FINANCIAL LLC
A71: First American Title | B71: FA | C71: CONVENTIONAL | D71: 019-331-21 | E71: 641891 | F71: 223500 | G71: 2021-07-30 | H71: GREATER NEVADA MORTGAGE
A72: First American Title | B72: FA | C72: CONVENTIONAL | D72: 022-171-02 | E72: 641898 | F72: 287590 | G72: 2021-07-30 | H72: UNITED WHOLESALE MORTGAGE LLC
A73: First American Title | B73: FA | C73: CONVENTIONAL | D73: 018-463-14 | E73: 641899 | F73: 104000 | G73: 2021-07-30 | H73: WELLS FARGO BANK NA
A74: First American Title | B74: FA | C74: CONVENTIONAL | D74: 029-563-09 | E74: 630522 | F74: 288994 | G74: 2021-02-05 | H74: WELCOME HOME FUNDING LLC
A75: First American Title | B75: FA | C75: FHA | D75: 018-143-03 | E75: 642146 | F75: 197420 | G75: 2021-08-04 | H75: GUILD MORTGAGE COMPANY LLC
A76: First American Title | B76: FA | C76: CONVENTIONAL | D76: 020-553-21 | E76: 630559 | F76: 225125 | G76: 2021-02-05 | H76: GUILD MORTGAGE CO LLC
A77: First American Title | B77: FA | C77: FHA | D77: 004-152-03 | E77: 648035 | F77: 263084 | G77: 2021-11-12 | H77: GUILD MORTGAGE COMPANY LLC
A78: First American Title | B78: FA | C78: VA | D78: 018-224-10 | E78: 632578 | F78: 158491 | G78: 2021-03-10 | H78: GUILD MORTGAGE CO LLC
A79: First American Title | B79: FA | C79: CONVENTIONAL | D79: 019-142-15 | E79: 641011 | F79: 364500 | G79: 2021-07-14 | H79: GUILD MORTGAGE COMPANY LLC
A80: First American Title | B80: FA | C80: CONVENTIONAL | D80: 019-677-18 | E80: 638844 | F80: 113000 | G80: 2021-06-09 | H80: LOS ANGELES POLICE FEDERAL CREDIT UNION
A81: First American Title | B81: FA | C81: CONVENTIONAL | D81: 020-235-14 | E81: 644943 | F81: 248800 | G81: 2021-09-24 | H81: SUMMIT FUNDING INC
A82: First American Title | B82: FA | C82: CONVENTIONAL | D82: 020-521-19 | E82: 644277 | F82: 244000 | G82: 2021-09-13 | H82: SUMMIT FUNDING INC
A83: First American Title | B83: FA | C83: FHA | D83: 020-643-15 | E83: 644285 | F83: 278548 | G83: 2021-09-13 | H83: GUILD MORTGAGE COMPANY LLC
A84: First American Title | B84: FA | C84: CONVENTIONAL | D84: 020-832-04 | E84: 640267 | F84: 464500 | G84: 2021-06-30 | H84: SUMMIT FUNDING INC
A85: First American Title | B85: FA | C85: CONVENTIONAL | D85: 019-765-11 | E85: 644383 | F85: 123000 | G85: 2021-09-15 | H85: NEW AMERICAN FUNDING
A86: First American Title | B86: FA | C86: CONVENTIONAL | D86: 017-022-10 | E86: 640729 | F86: 163000 | G86: 2021-07-08 | H86: GUILD MORTGAGE CO LLC
A87: First American Title | B87: FA | C87: FHA | D87: 029-302-08 | E87: 643624 | F87: 318477 | G87: 2021-08-30 | H87: GUILD MORTGAGE COMPANY LLC
A88: First American Title | B88: FA | C88: CONVENTIONAL | D88: 022-264-16 | E88: 636168 | F88: 204000 | G88: 2021-04-26 | H88: SUMMIT FUNDING INC
A89: First American Title | B89: FA | C89: CONVENTIONAL | D89: 019-572-23 | E89: 643971 | F89: 208000 | G89: 2021-09-07 | H89: GUILD MORTGAGE COMPANY LLC
A90: First American Title | B90: FA | C90: CONSTRUCTION | D90: 020-561-42 | E90: 645316 | F90: 3500000 | G90: 2021-09-30 | H90: HERITAGE BANK OF NEVADA
A91: First American Title | B91: FA | C91: CONVENTIONAL | D91: 020-461-03 | E91: 645639 | F91: 40000 | G91: 2021-10-06 | H91: AMERICA FIRST FEDERAL CREDIT UNION
A92: First American Title | B92: FA | C92: CONVENTIONAL | D92: 019-553-12 | E92: 641123 | F92: 297600 | G92: 2021-07-16 | H92: SUMMIT FUNDING INC
A93: First American Title | B93: FA | C93: CONVENTIONAL | D93: 022-044-01 | E93: 643359 | F93: 256480 | G93: 2021-08-25 | H93: GUILD MORTGAGE COMPANY LLC
A94: First American Title | B94: FA | C94: CREDIT LINE | D94: 029-543-05 | E94: 646069 | F94: 50000 | G94: 2021-10-14 | H94: CLARK COUNTY CREDIT UNION
A95: First American Title | B95: FA | C95: CONVENTIONAL | D95: 022-153-03 | E95: 645184 | F95: 223000 | G95: 2021-09-29 | H95: GREATER NEVADA LLC
A96: First American Title | B96: FA | C96: CONVENTIONAL | D96: 020-831-09 | E96: 645172 | F96: 279000 | G96: 2021-09-29 | H96: UNITED WHOLESALE MORTGAGE LLC
A97: First American Title | B97: FA | C97: VA | D97: 029-071-14 | E97: 645887 | F97: 401750 | G97: 2021-10-12 | H97: VALLEY WEST CORP
A98: First American Title | B98: FA | C98: CONVENTIONAL | D98: 022-391-08 | E98: 635356 | F98: 312000 | G98: 2021-04-14 | H98: WELCOME HOME FUNDING LLC
A99: First American Title | B99: FA | C99: CONVENTIONAL | D99: 010-332-02 | E99: 649606 | F99: 284000 | G99: 2021-12-13 | H99: GUILD MORTGAGE COMPANY LLC
A100: First American Title | B100: FA | C100: FHA | D100: 009-033-04 | E100: 645116 | F100: 1087500 | G100: 2021-09-28 | H100: AMERICAN PACIFIC MORTGAGE CORP
A101: First American Title | B101: FA | C101: VA | D101: 020-665-01 | E101: 644007 | F101: 276500 | G101: 2021-09-07 | H101: VALLEY WEST CORP
A102: First American Title | B102: FA | C102: CREDIT LINE | D102: 019-961-05 | E102: 645942 | F102: 80000 | G102: 2021-10-12 | H102: AMERICA FIRST FEDERAL CREDIT UNION
A103: First American Title | B103: FA | C103: FHA | D103: 020-913-12 | E103: 645051 | F103: 249749 | G103: 2021-09-27 | H103: GUILD MORTGAGE COMPANY LLC
A104: First American Title | B104: FA | C104: CONVENTIONAL | D104: 020-953-01 | E104: 635953 | F104: 189000 | G104: 2021-04-22 | H104: GUILD MORTGAGE COMPANY LLC
A105: First American Title | B105: FA | C105: CONVENTIONAL | D105: 010-711-20 | E105: 635866 | F105: 325200 | G105: 2021-04-21 | H105: ALL WESTERN MORTGAGE INC
A106: First American Title | B106: FA | C106: CONVENTIONAL | D106: 020-553-39 | E106: 649841 | F106: 236000 | G106: 2021-12-17 | H106: GREATER NEVADA MORTGAGE
A107: First American Title | B107: FA | C107: CONVENTIONAL | D107: 019-961-04 | E107: 646216 | F107: 224000 | G107: 2021-10-18 | H107: GUILD MORTGAGE COMPANY LLC
A108: First American Title | B108: FA | C108: CONVENTIONAL | D108: 006-011-10 | E108: 632794 | F108: 253000 | G108: 2021-03-12 | H108: CALIBER HOME LOANS INC
A109: First American Title | B109: FA | C109: CONVENTIONAL | D109: 019-324-14 | E109: 632789 | F109: 236000 | G109: 2021-03-12 | H109: GREATER NEVADA LLC
A110: First American Title | B110: FA | C110: COMMERCIAL | D110: 021-061-31 | E110: 649732 | F110: 7000000 | G110: 2021-12-15 | H110: BANK OF UTAH
A111: First American Title | B111: FA | C111: CONVENTIONAL | D111: 020-841-11 | E111: 628957 | F111: 228500 | G111: 2021-01-22 | H111: ALL WESTERN MORTGAGE INC
A112: First American Title | B112: FA | C112: FHA | D112: 022-182-03 | E112: 629044 | F112: 271618 | G112: 2021-01-25 | H112: GUILD MORTGAGE COMPANY LLC
A113: First American Title | B113: FA | C113: CONVENTIONAL | D113: 020-534-95 | E113: 649998 | F113: 242000 | G113: 2021-12-20 | H113: FINANCE OF AMERICA MORTGAGE LLC
A114: First American Title | B114: FA | C114: VA | D114: 029-715-05 | E114: 647622 | F114: 395280 | G114: 2021-11-05 | H114: GUILD MORTGAGE COMPANY LLC
A115: First American Title | B115: FA | C115: CONVENTIONAL | D115: 020-764-02 | E115: 634760 | F115: 245160 | G115: 2021-04-06 | H115: BROKER SOLUTIONS INC
A116: First American Title | B116: FA | C116: CONVENTIONAL | D116: 022-063-17 | E116: 643421 | F116: 200000 | G116: 2021-08-26 | H116: BAY EQUITY LLC
A117: First American Title | B117: FA | C117: CONVENTIONAL | D117: 029-605-03 | E117: 630940 | F117: 263500 | G117: 2021-02-12 | H117: DRAPER & KRAMER MORTGAGE CORP
A118: First American Title | B118: FA | C118: CONVENTIONAL | D118: 020-726-15 | E118: 650215 | F118: 120455 | G118: 2021-12-22 | H118: GUILD MORTGAGE COMPANY LLC
A119: First American Title | B119: FA | C119: VA | D119: 019-372-06 | E119: 634804 | F119: 243145 | G119: 2021-04-06 | H119: GUILD MORTGAGE CO LLC
A120: First American Title | B120: FA | C120: VA | D120: 029-585-14 | E120: 627986 | F120: 219559 | G120: 2021-01-05 | H120: FREEDOM MORTGAGE CORPORATION
A121: First American Title | B121: FA | C121: CONVENTIONAL | D121: 019-012-07 | E121: 650692 | F121: 119581 | G121: 2021-12-30 | H121: GUILD MORTGAGE COMPANY LLC
A122: First American Title | B122: FA | C122: FHA | D122: 020-701-21 | E122: 649260 | F122: 310539 | G122: 2021-12-03 | H122: GUILD MORTGAGE COMPANY LLC
A123: First American Title | B123: FA | C123: HOME EQUITY | D123: 020-182-08 | E123: 628053 | F123: 3989 | G123: 2021-01-06 | H123: NEVADA RURAL HOUSING AUTHORITY
A124: First American Title | B124: FA | C124: CONVENTIONAL | D124: 021-351-25 | E124: 634678 | F124: 182705 | G124: 2021-04-05 | H124: GUILD MORTGAGE CO LLC
A125: First American Title | B125: FA | C125: VA | D125: 029-121-04 | E125: 628084 | F125: 313163 | G125: 2021-01-07 | H125: FREEDOM MORTGAGE CORPORATION
A126: First American Title | B126: FA | C126: VA | D126: 012-141-04 | E126: 628168 | F126: 264293 | G126: 2021-01-08 | H126: FREEDOM MORTGAGE CORPORATION
A127: First American Title | B127: FA | C127: CONVENTIONAL | D127: 009-072-06 | E127: 647930 | F127: 256839 | G127: 2021-11-10 | H127: GUILD MORTGAGE COMPANY LLC
A128: First American Title | B128: FA | C128: CONVENTIONAL | D128: 019-437-07 | E128: 648992 | F128: 121415 | G128: 2021-11-30 | H128: GUILD MORTGAGE COMPANY LLC
A129: First American Title | B129: FA | C129: FHA | D129: 018-402-05 | E129: 628232 | F129: 183150 | G129: 2021-01-08 | H129: MASON MCDUFFIE MORTGAGE CORPORATION
A130: First American Title | B130: FA | C130: FHA | D130: 018-405-20 | E130: 647637 | F130: 191047 | G130: 2021-11-05 | H130: ALL WESTERN MORTGAGE INC
A131: First American Title | B131: FA | C131: CONVENTIONAL | D131: 020-856-08 | E131: 647636 | F131: 260000 | G131: 2021-11-05 | H131: GREATER NEVADA MORTGAGE
A132: First American Title | B132: FA | C132: CREDIT LINE | D132: 029-571-07 | E132: 637604 | F132: 36000 | G132: 2021-05-19 | H132: GREATER NEVADA CREDIT UNION
A133: First American Title | B133: FA | C133: CONVENTIONAL | D133: 020-441-25 | E133: 648939 | F133: 100000 | G133: 2021-11-29 | H133: GREATER NEVADA MORTGAGE
A134: First American Title | B134: FA | C134: FHA | D134: 020-182-08 | E134: 628052 | F134: 199430 | G134: 2021-01-06 | H134: AMERICAN PACIFIC MORTGAGE CORPORATION
A135: First American Title | B135: FA | C135: CONVENTIONAL | D135: 019-284-15 | E135: 650408 | F135: 310350 | G135: 2021-12-27 | H135: GUILD MORTGAGE COMPANY LLC
A136: First American Title | B136: FA | C136: CONVENTIONAL | D136: 029-462-01 | E136: 650689 | F136: 288000 | G136: 2021-12-30 | H136: BROKER SOLUTIONS INC
A137: First American Title | B137: FA | C137: CONVENTIONAL | D137: 019-065-02 | E137: 650670 | F137: 397900 | G137: 2021-12-30 | H137: SUN WEST MORTGAGE CO INC
A138: First American Title | B138: FA | C138: CONVENTIONAL | D138: 016-251-24 | E138: 634377 | F138: 276000 | G138: 2021-03-31 | H138: GENEVA FINANCIAL LLC
A139: First American Title | B139: FA | C139: CONVENTIONAL | D139: 010-281-41 | E139: 634361 | F139: 252000 | G139: 2021-03-31 | H139: GUILD MORTGAGE CO LLC
A140: First American Title | B140: FA | C140: FHA | D140: 022-186-19 | E140: 634355 | F140: 267622 | G140: 2021-03-31 | H140: GUILD MORTGAGE CO LLC
A141: First American Title | B141: FA | C141: CONVENTIONAL | D141: 020-861-22 | E141: 641689 | F141: 185000 | G141: 2021-07-27 | H141: BROKER SOLUTIONS INC
A142: First American Title | B142: FA | C142: CONVENTIONAL | D142: 020-862-07 | E142: 641772 | F142: 208000 | G142: 2021-07-28 | H142: SUMMIT FUNDING INC
A143: First American Title | B143: FA | C143: CONVENTIONAL | D143: 016-251-21 | E143: 635602 | F143: 82928 | G143: 2021-04-16 | H143: GUILD MORTGAGE CO LLC
A144: First American Title | B144: FA | C144: CONVENTIONAL | D144: 017-342-11 | E144: 637387 | F144: 78500 | G144: 2021-05-14 | H144: SUMMIT FUNDING INC
A145: First American Title | B145: FA | C145: CONVENTIONAL | D145: 019-310-19 | E145: 650432 | F145: 150000 | G145: 2021-12-27 | H145: US BANK NA
A146: First American Title | B146: FA | C146: CONVENTIONAL | D146: 020-272-14 | E146: 650259 | F146: 140021 | G146: 2021-12-22 | H146: GUILD MORTGAGE COMPANY LLC
A147: First American Title | B147: FA | C147: CONVENTIONAL | D147: 001-055-22 | E147: 646343 | F147: 166400 | G147: 2021-10-20 | H147: MASON MCDUFFIE MORTGAGE CORP
A148: First American Title | B148: FA | C148: CONVENTIONAL | D148: 029-383-02 | E148: 642847 | F148: 257000 | G148: 2021-08-17 | H148: GUILD MORTGAGE COMPANY LLC
A149: First American Title | B149: FA | C149: CONVENTIONAL | D149: 019-222-13 | E149: 636423 | F149: 310000 | G149: 2021-04-29 | H149: ON Q FINANCIAL INC
A150: First American Title | B150: FA | C150: CONVENTIONAL | D150: 022-163-05 | E150: 646577 | F150: 333600 | G150: 2021-10-22 | H150: ON Q FINANCIAL INC
A151: First American Title | B151: FA | C151: VA | D151: 019-142-07 | E151: 642764 | F151: 362833 | G151: 2021-08-16 | H151: GUILD MORTGAGE COMPANY LLC
A152: First American Title | B152: FA | C152: CONVENTIONAL | D152: 020-431-06 | E152: 636592 | F152: 268000 | G152: 2021-05-03 | H152: SUMMIT FUNDING INC
A153: First American Title | B153: FA | C153: CONVENTIONAL | D153: 019-822-05 | E153: 649369 | F153: 153000 | G153: 2021-12-07 | H153: GUILD MORTGAGE COMPANY LLC
A154: First American Title | B154: FA | C154: CONVENTIONAL | D154: 020-194-13 | E154: 630610 | F154: 205000 | G154: 2021-02-08 | H154: GUILD MORTGAGE CO LLC
A155: First American Title | B155: FA | C155: CONVENTIONAL | D155: 020-234-21 | E155: 649323 | F155: 252750 | G155: 2021-12-06 | H155: BROKER SOLUTIONS INC
A156: First American Title | B156: FA | C156: CONVENTIONAL | D156: 029-141-09 | E156: 650436 | F156: 381171 | G156: 2021-12-27 | H156: GUILD MORTGAGE COMPANY LLC
A157: First American Title | B157: FA | C157: COMMERCIAL | D157: 020-071-04 | E157: 647608 | F157: 830000 | G157: 2021-11-05 | H157: STANFORD FEDERAL CREDIT UNION
A158: First American Title | B158: FA | C158: CONVENTIONAL | D158: 018-543-16 | E158: 634777 | F158: 261400 | G158: 2021-04-06 | H158: SHANNON INVESTMENTS LLC
A159: First American Title | B159: FA | C159: CONVENTIONAL | D159: 022-321-13 | E159: 633891 | F159: 272966 | G159: 2021-03-29 | H159: GUILD MORTGAGE CO LLC
A160: First American Title | B160: FA | C160: CONVENTIONAL | D160: 022-431-02 | E160: 647418 | F160: 337500 | G160: 2021-11-02 | H160: NEW AMERICAN FUNDING
A161: First American Title | B161: FA | C161: VA | D161: 009-172-03 | E161: 647576 | F161: 89961 | G161: 2021-11-04 | H161: GUILD MORTGAGE COMPANY LLC
A162: First American Title | B162: FA | C162: VA | D162: 020-561-01 | E162: 636092 | F162: 253980 | G162: 2021-04-26 | H162: SUN WEST MORTGAGE CO INC
A163: First American Title | B163: FA | C163: VA | D163: 015-771-32 | E163: 642397 | F163: 206138 | G163: 2021-08-09 | H163: GUILD MORTGAGE COMPANY LLC
A164: First American Title | B164: FA | C164: CONVENTIONAL | D164: 020-057-02 | E164: 639290 | F164: 161400 | G164: 2021-06-16 | H164: SUMMIT FUNDING INC
A165: First American Title | B165: FA | C165: CONVENTIONAL | D165: 019-932-14 | E165: 636295 | F165: 202250 | G165: 2021-04-28 | H165: GUILD MORTGAGE COMPANY LLC
A166: First American Title | B166: FA | C166: CONVENTIONAL | D166: 022-302-13 | E166: 639419 | F166: 303000 | G166: 2021-06-18 | H166: SUMMIT FUNDING INC
A167: First American Title | B167: FA | C167: FHA | D167: 029-042-18 | E167: 633883 | F167: 301728 | G167: 2021-03-29 | H167: GUILD MORTGAGE CO LLC
A168: First American Title | B168: FA | C168: VA | D168: 029-573-08 | E168: 628319 | F168: 304464 | G168: 2021-01-11 | H168: CALIBER HOME LOANS INC
A169: First American Title | B169: FA | C169: COMMERCIAL | D169: 021-103-22 | E169: 648756 | F169: 4900000 | G169: 2021-11-23 | H169: PLUMAS BANK
A170: First American Title | B170: FA | C170: CONVENTIONAL | D170: 022-264-06 | E170: 636287 | F170: 180000 | G170: 2021-04-28 | H170: BAY EQUITY LLC
A171: First American Title | B171: FA | C171: VA | D171: 020-545-20 | E171: 636291 | F171: 257217 | G171: 2021-04-28 | H171: GUILD MORTGAGE COMPANY LLC
A172: First American Title | B172: FA | C172: CONVENTIONAL | D172: 014-481-03 | E172: 648790 | F172: 345520 | G172: 2021-11-24 | H172: GUILD MORTGAGE COMPANY LLC
A173: First American Title | B173: FA | C173: CONVENTIONAL | D173: 022-272-11 | E173: 633889 | F173: 180000 | G173: 2021-03-29 | H173: GUILD MORTGAGE CO LLC
A174: First Centennial Title | B174: FC | C174: CONVENTIONAL | D174: 014-381-30 | E174: 630114 | F174: 107000 | G174: 2021-02-01 | H174: PRIMELENDING
A175: First Centennial Title | B175: FC | C175: CONSTRUCTION | D175: 021-051-55 | E175: 643143 | F175: 472000 | G175: 2021-08-23 | H175: UNITED FEDERAL CREDIT UNION
A176: First Centennial Title | B176: FC | C176: CONVENTIONAL | D176: 029-643-01 | E176: 633398 | F176: 330200 | G176: 2021-03-22 | H176: FINANCE OF AMERICA MORTGAGE LLC
A177: First Centennial Title | B177: FC | C177: CONVENTIONAL | D177: 015-327-17 | E177: 643067 | F177: 303700 | G177: 2021-08-20 | H177: WELLS FARGO BANK NA
A178: First Centennial Title | B178: FC | C178: CONVENTIONAL | D178: 019-553-02 | E178: 642932 | F178: 222500 | G178: 2021-08-18 | H178: ALL WESTERN MORTGAGE INC
A179: First Centennial Title | B179: FC | C179: CONVENTIONAL | D179: 019-340-04 | E179: 633481 | F179: 257500 | G179: 2021-03-23 | H179: GREATER NEVADA LLC
A180: First Centennial Title | B180: FC | C180: CONVENTIONAL | D180: 022-341-08 | E180: 631820 | F180: 227000 | G180: 2021-02-26 | H180: PRIMELENDING
A181: First Centennial Title | B181: FC | C181: CONVENTIONAL | D181: 029-664-02 | E181: 631603 | F181: 260000 | G181: 2021-02-24 | H181: UNITED FEDERAL CREDIT UNION
A182: First Centennial Title | B182: FC | C182: CONVENTIONAL | D182: 015-371-21 | E182: 631532 | F182: 170100 | G182: 2021-02-23 | H182: GREATER NEVADA LLC
A183: First Centennial Title | B183: FC | C183: CONVENTIONAL | D183: 019-932-21 | E183: 641853 | F183: 212000 | G183: 2021-07-30 | H183: WELLS FARGO BANK NA
A184: First Centennial Title | B184: FC | C184: CONVENTIONAL | D184: 019-677-14 | E184: 644450 | F184: 277900 | G184: 2021-09-16 | H184: SYNERGY HOME MORTGAGE LLC
A185: First Centennial Title | B185: FC | C185: VA | D185: 020-725-24 | E185: 633469 | F185: 224563 | G185: 2021-03-23 | H185: FREEDOM MORTGAGE CORP
A186: First Centennial Title | B186: FC | C186: CONVENTIONAL | D186: 019-313-04 | E186: 639600 | F186: 231000 | G186: 2021-06-22 | H186: UNITED FEDERAL CREDIT UNION
A187: First Centennial Title | B187: FC | C187: CONVENTIONAL | D187: 019-901-16 | E187: 640135 | F187: 265500 | G187: 2021-06-29 | H187: UNITED FEDERAL CREDIT UNION
A188: First Centennial Title | B188: FC | C188: HARD MONEY | D188: 016-024-15 | E188: 631488 | F188: 225000 | G188: 2021-02-22 | H188: MOGUS CYNTHIA
A189: First Centennial Title | B189: FC | C189: CONVENTIONAL | D189: 022-528-01 | E189: 642851 | F189: 255500 | G189: 2021-08-17 | H189: UNITED FEDERAL CREDIT UNION
A190: First Centennial Title | B190: FC | C190: CONVENTIONAL | D190: 017-115-03 | E190: 644389 | F190: 113500 | G190: 2021-09-15 | H190: UNITED FEDERAL CREDIT UNION
A191: First Centennial Title | B191: FC | C191: FHA | D191: 029-665-09 | E191: 640012 | F191: 248178 | G191: 2021-06-28 | H191: UNITED FEDERAL CREDIT UNION
A192: First Centennial Title | B192: FC | C192: CONVENTIONAL | D192: 019-861-14 | E192: 643146 | F192: 230000 | G192: 2021-08-23 | H192: UNITED FEDERAL CREDIT UNION
A193: First Centennial Title | B193: FC | C193: CONVENTIONAL | D193: 017-351-05 | E193: 635996 | F193: 100000 | G193: 2021-04-23 | H193: GREATER NEVADA LLC
A194: First Centennial Title | B194: FC | C194: CONVENTIONAL | D194: 019-454-53 | E194: 642845 | F194: 345000 | G194: 2021-08-17 | H194: CMG FINANCIAL
A195: First Centennial Title | B195: FC | C195: CONVENTIONAL | D195: 019-551-53 | E195: 630398 | F195: 215700 | G195: 2021-02-03 | H195: GENEVA FINANCIAL LLC
A196: First Centennial Title | B196: FC | C196: SBA | D196: 016-193-05 | E196: 639573 | F196: 372000 | G196: 2021-06-21 | H196: NEVADA STATE DEVELOPMENT CORP
A197: First Centennial Title | B197: FC | C197: CONVENTIONAL | D197: 019-041-13 | E197: 636005 | F197: 400000 | G197: 2021-04-23 | H197: GREATER NEVADA MORTGAGE
A198: First Centennial Title | B198: FC | C198: CONVENTIONAL | D198: 022-301-06 | E198: 630516 | F198: 259000 | G198: 2021-02-05 | H198: EVERGREEN MONEYSOURCE MORTGAGE CO
A199: First Centennial Title | B199: FC | C199: CONVENTIONAL | D199: 019-676-18 | E199: 636472 | F199: 163000 | G199: 2021-04-30 | H199: GREATER NEVADA LLC
A200: First Centennial Title | B200: FC | C200: FHA | D200: 018-515-16 | E200: 642856 | F200: 276760 | G200: 2021-08-17 | H200: ALL WESTERN MORTGAGE INC
... 1211 more rows

Sheet SALESLOANSLIST (hidden)
A1: FULLNAME | B1: RECBY | C1: AMOUNT | D1: RECDATE | E1: DOCTYPE | L1: 4240
A2: Acme Title and Escrow | B2: ACT | C2: 525000 | D2: 2021-10-08 | E2: Deed
A3: Acme Title and Escrow | B3: ACT | C3: 13900 | D3: 2021-07-19 | E3: Deed
A4: Acme Title and Escrow | B4: ACT | C4: 213000 | D4: 2021-06-11 | E4: Deed of Trust
A5: Acme Title and Escrow | B5: ACT | C5: 55000 | D5: 2021-09-13 | E5: Deed
A6: Acme Title and Escrow | B6: ACT | C6: 380000 | D6: 2021-03-16 | E6: Deed
A7: Acme Title and Escrow | B7: ACT | C7: 355000 | D7: 2021-01-08 | E7: Deed
A8: Acme Title and Escrow | B8: ACT | C8: 381000 | D8: 2021-06-30 | E8: Deed
A9: Acme Title and Escrow | B9: ACT | C9: 399000 | D9: 2021-10-13 | E9: Deed
A10: Acme Title and Escrow | B10: ACT | C10: 10127 | D10: 2021-01-11 | E10: Deed of Trust
A11: Acme Title and Escrow | B11: ACT | C11: 61000 | D11: 2021-06-11 | E11: Deed of Trust
A12: Acme Title and Escrow | B12: ACT | C12: 103600 | D12: 2021-11-05 | E12: Deed of Trust
A13: Acme Title and Escrow | B13: ACT | C13: 14000 | D13: 2021-05-07 | E13: Deed
A14: Acme Title and Escrow | B14: ACT | C14: 393000 | D14: 2021-03-29 | E14: Deed of Trust
A15: Acme Title and Escrow | B15: ACT | C15: 275000 | D15: 2021-03-26 | E15: Deed
A16: Acme Title and Escrow | B16: ACT | C16: 84452 | D16: 2021-08-23 | E16: Deed of Trust
A17: Acme Title and Escrow | B17: ACT | C17: 145612 | D17: 2021-08-11 | E17: Deed
A18: Acme Title and Escrow | B18: ACT | C18: 315000 | D18: 2021-01-15 | E18: Deed
A19: Acme Title and Escrow | B19: ACT | C19: 287500 | D19: 2021-12-13 | E19: Deed of Trust
A20: Acme Title and Escrow | B20: ACT | C20: 635000 | D20: 2021-12-08 | E20: Deed
A21: Acme Title and Escrow | B21: ACT | C21: 350000 | D21: 2021-06-29 | E21: Deed
A22: Acme Title and Escrow | B22: ACT | C22: 12000 | D22: 2021-05-13 | E22: Deed
A23: Acme Title and Escrow | B23: ACT | C23: 57000 | D23: 2021-07-16 | E23: Deed of Trust
A24: Acme Title and Escrow | B24: ACT | C24: 173000 | D24: 2021-01-19 | E24: Deed of Trust
A25: Acme Title and Escrow | B25: ACT | C25: 252200 | D25: 2021-04-08 | E25: Deed of Trust
A26: Acme Title and Escrow | B26: ACT | C26: 107700 | D26: 2021-08-30 | E26: Deed of Trust
A27: Archer Title and Escrow | B27: ATE | C27: 253068 | D27: 2021-03-01 | E27: Deed of Trust
A28: Archer Title and Escrow | B28: ATE | C28: 430000 | D28: 2021-03-30 | E28: Deed
A29: Archer Title and Escrow | B29: ATE | C29: 585000 | D29: 2021-10-20 | E29: Deed of Trust
A30: Archer Title and Escrow | B30: ATE | C30: 533655 | D30: 2021-08-27 | E30: Deed of Trust
A31: Archer Title and Escrow | B31: ATE | C31: 399896 | D31: 2021-12-20 | E31: Deed of Trust
A32: Archer Title and Escrow | B32: ATE | C32: 355000 | D32: 2021-09-30 | E32: Deed
A33: Archer Title and Escrow | B33: ATE | C33: 400000 | D33: 2021-09-03 | E33: Deed
A34: Archer Title and Escrow | B34: ATE | C34: 386000 | D34: 2021-12-10 | E34: Deed
A35: Archer Title and Escrow | B35: ATE | C35: 340000 | D35: 2021-12-16 | E35: Deed
A36: Archer Title and Escrow | B36: ATE | C36: 139000 | D36: 2021-06-29 | E36: Deed of Trust
A37: Archer Title and Escrow | B37: ATE | C37: 270747 | D37: 2021-03-22 | E37: Deed of Trust
A38: Archer Title and Escrow | B38: ATE | C38: 320000 | D38: 2021-09-07 | E38: Deed
A39: Archer Title and Escrow | B39: ATE | C39: 410000 | D39: 2021-03-30 | E39: Deed
A40: Archer Title and Escrow | B40: ATE | C40: 300000 | D40: 2021-11-23 | E40: Deed
A41: Archer Title and Escrow | B41: ATE | C41: 150000 | D41: 2021-11-04 | E41: Deed
A42: Archer Title and Escrow | B42: ATE | C42: 540000 | D42: 2021-12-06 | E42: Deed of Trust
A43: Archer Title and Escrow | B43: ATE | C43: 606000 | D43: 2021-12-10 | E43: Deed
A44: Archer Title and Escrow | B44: ATE | C44: 433800 | D44: 2021-03-31 | E44: Deed of Trust
A45: Archer Title and Escrow | B45: ATE | C45: 324000 | D45: 2021-04-07 | E45: Deed of Trust
A46: Archer Title and Escrow | B46: ATE | C46: 167359 | D46: 2021-01-07 | E46: Deed of Trust
A47: Archer Title and Escrow | B47: ATE | C47: 280000 | D47: 2021-06-22 | E47: Deed of Trust
A48: Archer Title and Escrow | B48: ATE | C48: 420000 | D48: 2021-06-22 | E48: Deed
A49: Archer Title and Escrow | B49: ATE | C49: 375000 | D49: 2021-07-16 | E49: Deed
A50: Calatlantic Title West | B50: CAL | C50: 468810 | D50: 2021-07-30 | E50: Deed Subdivider
A51: Calatlantic Title West | B51: CAL | C51: 397547 | D51: 2021-04-28 | E51: Deed Subdivider
A52: Calatlantic Title West | B52: CAL | C52: 462461 | D52: 2021-11-29 | E52: Deed Subdivider
A53: Calatlantic Title West | B53: CAL | C53: 469950 | D53: 2021-11-29 | E53: Deed Subdivider
A54: Calatlantic Title West | B54: CAL | C54: 377463 | D54: 2021-01-25 | E54: Deed Subdivider
A55: Calatlantic Title West | B55: CAL | C55: 366831 | D55: 2021-04-01 | E55: Deed Subdivider
A56: Calatlantic Title West | B56: CAL | C56: 457084 | D56: 2021-05-12 | E56: Deed Subdivider
A57: Calatlantic Title West | B57: CAL | C57: 388610 | D57: 2021-01-14 | E57: Deed Subdivider
A58: Calatlantic Title West | B58: CAL | C58: 455424 | D58: 2021-01-13 | E58: Deed Subdivider
A59: Calatlantic Title West | B59: CAL | C59: 490567 | D59: 2021-12-23 | E59: Deed Subdivider
A60: Calatlantic Title West | B60: CAL | C60: 504414 | D60: 2021-09-23 | E60: Deed Subdivider
A61: Calatlantic Title West | B61: CAL | C61: 358873 | D61: 2021-02-12 | E61: Deed Subdivider
A62: Calatlantic Title West | B62: CAL | C62: 451993 | D62: 2021-01-29 | E62: Deed Subdivider
A63: Calatlantic Title West | B63: CAL | C63: 424950 | D63: 2021-10-22 | E63: Deed Subdivider
A64: Calatlantic Title West | B64: CAL | C64: 498497 | D64: 2021-09-21 | E64: Deed Subdivider
A65: Calatlantic Title West | B65: CAL | C65: 385285 | D65: 2021-03-18 | E65: Deed Subdivider
A66: Calatlantic Title West | B66: CAL | C66: 475090 | D66: 2021-04-07 | E66: Deed Subdivider
A67: Calatlantic Title West | B67: CAL | C67: 477179 | D67: 2021-05-27 | E67: Deed Subdivider
A68: Calatlantic Title West | B68: CAL | C68: 421930 | D68: 2021-05-13 | E68: Deed Subdivider
A69: Calatlantic Title West | B69: CAL | C69: 449458 | D69: 2021-02-03 | E69: Deed Subdivider
A70: Calatlantic Title West | B70: CAL | C70: 397610 | D70: 2021-01-27 | E70: Deed Subdivider
A71: Calatlantic Title West | B71: CAL | C71: 541611 | D71: 2021-11-30 | E71: Deed Subdivider
A72: Calatlantic Title West | B72: CAL | C72: 446778 | D72: 2021-12-22 | E72: Deed Subdivider
A73: Calatlantic Title West | B73: CAL | C73: 360188 | D73: 2021-01-26 | E73: Deed Subdivider
A74: Calatlantic Title West | B74: CAL | C74: 425996 | D74: 2021-09-10 | E74: Deed Subdivider
A75: Calatlantic Title West | B75: CAL | C75: 461488 | D75: 2021-11-12 | E75: Deed Subdivider
A76: Calatlantic Title West | B76: CAL | C76: 537534 | D76: 2021-11-19 | E76: Deed Subdivider
A77: Calatlantic Title West | B77: CAL | C77: 458130 | D77: 2021-05-17 | E77: Deed Subdivider
A78: Calatlantic Title West | B78: CAL | C78: 359141 | D78: 2021-04-05 | E78: Deed Subdivider
A79: Calatlantic Title West | B79: CAL | C79: 375002 | D79: 2021-02-05 | E79: Deed Subdivider
A80: Calatlantic Title West | B80: CAL | C80: 358717 | D80: 2021-01-05 | E80: Deed Subdivider
A81: Calatlantic Title West | B81: CAL | C81: 518357 | D81: 2021-11-10 | E81: Deed Subdivider
A82: Calatlantic Title West | B82: CAL | C82: 469950 | D82: 2021-11-05 | E82: Deed Subdivider
A83: Calatlantic Title West | B83: CAL | C83: 442955 | D83: 2021-07-12 | E83: Deed Subdivider
A84: Calatlantic Title West | B84: CAL | C84: 450197 | D84: 2021-08-12 | E84: Deed Subdivider
A85: Calatlantic Title West | B85: CAL | C85: 470231 | D85: 2021-08-12 | E85: Deed Subdivider
A86: Calatlantic Title West | B86: CAL | C86: 451934 | D86: 2021-07-09 | E86: Deed Subdivider
A87: Calatlantic Title West | B87: CAL | C87: 376032 | D87: 2021-06-11 | E87: Deed Subdivider
A88: Calatlantic Title West | B88: CAL | C88: 372279 | D88: 2021-06-18 | E88: Deed Subdivider
A89: Calatlantic Title West | B89: CAL | C89: 421950 | D89: 2021-02-23 | E89: Deed Subdivider
A90: Calatlantic Title West | B90: CAL | C90: 473205 | D90: 2021-06-16 | E90: Deed Subdivider
A91: Calatlantic Title West | B91: CAL | C91: 391664 | D91: 2021-04-21 | E91: Deed Subdivider
A92: Calatlantic Title West | B92: CAL | C92: 468467 | D92: 2021-02-26 | E92: Deed Subdivider
A93: Calatlantic Title West | B93: CAL | C93: 480341 | D93: 2021-08-23 | E93: Deed Subdivider
A94: Calatlantic Title West | B94: CAL | C94: 400126 | D94: 2021-08-26 | E94: Deed Subdivider
A95: Calatlantic Title West | B95: CAL | C95: 534073 | D95: 2021-10-13 | E95: Deed Subdivider
A96: Calatlantic Title West | B96: CAL | C96: 420719 | D96: 2021-06-14 | E96: Deed Subdivider
A97: Calatlantic Title West | B97: CAL | C97: 471036 | D97: 2021-03-08 | E97: Deed Subdivider
A98: Calatlantic Title West | B98: CAL | C98: 427600 | D98: 2021-03-29 | E98: Deed
A99: Calatlantic Title West | B99: CAL | C99: 380184 | D99: 2021-03-08 | E99: Deed Subdivider
A100: Calatlantic Title West | B100: CAL | C100: 477677 | D100: 2021-06-28 | E100: Deed Subdivider
A101: Calatlantic Title West | B101: CAL | C101: 516907 | D101: 2021-08-24 | E101: Deed Subdivider
A102: Calatlantic Title West | B102: CAL | C102: 520097 | D102: 2021-10-14 | E102: Deed Subdivider
A103: Calatlantic Title West | B103: CAL | C103: 493420 | D103: 2021-12-29 | E103: Deed Subdivider
A104: Calatlantic Title West | B104: CAL | C104: 486642 | D104: 2021-07-29 | E104: Deed Subdivider
A105: Calatlantic Title West | B105: CAL | C105: 396664 | D105: 2021-04-26 | E105: Deed
A106: Calatlantic Title West | B106: CAL | C106: 473409 | D106: 2021-07-20 | E106: Deed Subdivider
A107: Calatlantic Title West | B107: CAL | C107: 440159 | D107: 2021-07-19 | E107: Deed Subdivider
A108: Calatlantic Title West | B108: CAL | C108: 461173 | D108: 2021-10-18 | E108: Deed Subdivider
A109: Calatlantic Title West | B109: CAL | C109: 559950 | D109: 2021-07-23 | E109: Deed Subdivider
A110: Calatlantic Title West | B110: CAL | C110: 385168 | D110: 2021-03-23 | E110: Deed Subdivider
A111: Calatlantic Title West | B111: CAL | C111: 445591 | D111: 2021-07-14 | E111: Deed Subdivider
A112: Calatlantic Title West | B112: CAL | C112: 545567 | D112: 2021-10-21 | E112: Deed Subdivider
A113: Calatlantic Title West | B113: CAL | C113: 403483 | D113: 2021-08-05 | E113: Deed Subdivider
A114: Calatlantic Title West | B114: CAL | C114: 541663 | D114: 2021-11-24 | E114: Deed Subdivider
A115: Calatlantic Title West | B115: CAL | C115: 483468 | D115: 2021-11-30 | E115: Deed Subdivider
A116: Calatlantic Title West | B116: CAL | C116: 506217 | D116: 2021-09-24 | E116: Deed Subdivider
A117: Calatlantic Title West | B117: CAL | C117: 393555 | D117: 2021-04-19 | E117: Deed Subdivider
A118: Calatlantic Title West | B118: CAL | C118: 399758 | D118: 2021-06-15 | E118: Deed Subdivider
A119: Calatlantic Title West | B119: CAL | C119: 445517 | D119: 2021-03-31 | E119: Deed Subdivider
A120: Calatlantic Title West | B120: CAL | C120: 520253 | D120: 2021-10-20 | E120: Deed Subdivider
A121: Calatlantic Title West | B121: CAL | C121: 422899 | D121: 2021-03-24 | E121: Deed
A122: Calatlantic Title West | B122: CAL | C122: 481792 | D122: 2021-08-19 | E122: Deed Subdivider
A123: Calatlantic Title West | B123: CAL | C123: 425261 | D123: 2021-01-21 | E123: Deed Subdivider
A124: First American Title | B124: FA | C124: 427000 | D124: 2021-11-03 | E124: Deed
A125: First American Title | B125: FA | C125: 2775000 | D125: 2021-04-27 | E125: Deed
A126: First American Title | B126: FA | C126: 429513 | D126: 2021-11-04 | E126: Deed Subdivider
A127: First American Title | B127: FA | C127: 189000 | D127: 2021-04-27 | E127: Deed of Trust
A128: First American Title | B128: FA | C128: 100000 | D128: 2021-11-29 | E128: Deed of Trust
A129: First American Title | B129: FA | C129: 20000 | D129: 2021-05-10 | E129: Deed
A130: First American Title | B130: FA | C130: 89961 | D130: 2021-11-04 | E130: Deed of Trust
A131: First American Title | B131: FA | C131: 65000 | D131: 2021-06-21 | E131: Deed
A132: First American Title | B132: FA | C132: 118500 | D132: 2021-05-24 | E132: Deed of Trust
A133: First American Title | B133: FA | C133: 223000 | D133: 2021-09-29 | E133: Deed of Trust
A134: First American Title | B134: FA | C134: 410000 | D134: 2021-09-29 | E134: Deed
A135: First American Title | B135: FA | C135: 253980 | D135: 2021-04-26 | E135: Deed of Trust
A136: First American Title | B136: FA | C136: 710000 | D136: 2021-10-19 | E136: Deed
A137: First American Title | B137: FA | C137: 355000 | D137: 2021-06-02 | E137: Deed
A138: First American Title | B138: FA | C138: 1397000 | D138: 2021-02-23 | E138: Deed
A139: First American Title | B139: FA | C139: 279000 | D139: 2021-09-29 | E139: Deed of Trust
A140: First American Title | B140: FA | C140: 156000 | D140: 2021-04-27 | E140: Deed of Trust
A141: First American Title | B141: FA | C141: 121415 | D141: 2021-11-30 | E141: Deed of Trust
A142: First American Title | B142: FA | C142: 257217 | D142: 2021-04-28 | E142: Deed of Trust
A143: First American Title | B143: FA | C143: 146118 | D143: 2021-09-30 | E143: Deed of Trust
A144: First American Title | B144: FA | C144: 498200 | D144: 2021-02-04 | E144: Deed
A145: First American Title | B145: FA | C145: 378230 | D145: 2021-08-10 | E145: Deed
A146: First American Title | B146: FA | C146: 275000 | D146: 2021-04-23 | E146: Deed
A147: First American Title | B147: FA | C147: 331000 | D147: 2021-08-24 | E147: Deed of Trust
A148: First American Title | B148: FA | C148: 173000 | D148: 2021-01-26 | E148: Deed
A149: First American Title | B149: FA | C149: 399000 | D149: 2021-08-10 | E149: Deed
A150: First American Title | B150: FA | C150: 4900000 | D150: 2021-11-23 | E150: Deed of Trust
A151: First American Title | B151: FA | C151: 248800 | D151: 2021-09-24 | E151: Deed of Trust
A152: First American Title | B152: FA | C152: 279497 | D152: 2021-08-25 | E152: Deed of Trust
A153: First American Title | B153: FA | C153: 123940 | D153: 2021-04-28 | E153: Deed
A154: First American Title | B154: FA | C154: 257132 | D154: 2021-08-25 | E154: Deed of Trust
A155: First American Title | B155: FA | C155: 386473 | D155: 2021-11-29 | E155: Deed
A156: First American Title | B156: FA | C156: 202250 | D156: 2021-04-28 | E156: Deed of Trust
A157: First American Title | B157: FA | C157: 269000 | D157: 2021-08-20 | E157: Deed
A158: First American Title | B158: FA | C158: 256480 | D158: 2021-08-25 | E158: Deed of Trust
A159: First American Title | B159: FA | C159: 345520 | D159: 2021-11-24 | E159: Deed of Trust
A160: First American Title | B160: FA | C160: 180000 | D160: 2021-04-28 | E160: Deed of Trust
A161: First American Title | B161: FA | C161: 299000 | D161: 2021-09-30 | E161: Deed
A162: First American Title | B162: FA | C162: 715000 | D162: 2021-11-05 | E162: Deed
A163: First American Title | B163: FA | C163: 830000 | D163: 2021-11-05 | E163: Deed of Trust
A164: First American Title | B164: FA | C164: 3500000 | D164: 2021-09-30 | E164: Deed of Trust
A165: First American Title | B165: FA | C165: 193000 | D165: 2021-02-23 | E165: Deed
A166: First American Title | B166: FA | C166: 206138 | D166: 2021-08-09 | E166: Deed of Trust
A167: First American Title | B167: FA | C167: 250000 | D167: 2021-11-29 | E167: Deed
A168: First American Title | B168: FA | C168: 265000 | D168: 2021-08-06 | E168: Deed
A169: First American Title | B169: FA | C169: 120000 | D169: 2021-08-26 | E169: Deed of Trust
A170: First American Title | B170: FA | C170: 200000 | D170: 2021-08-26 | E170: Deed of Trust
A171: First American Title | B171: FA | C171: 569000 | D171: 2021-04-20 | E171: Deed
A172: First American Title | B172: FA | C172: 355000 | D172: 2021-08-31 | E172: Deed
A173: First American Title | B173: FA | C173: 75000 | D173: 2021-05-05 | E173: Deed
A174: First American Title | B174: FA | C174: 163000 | D174: 2021-02-26 | E174: Deed of Trust
A175: First American Title | B175: FA | C175: 175000 | D175: 2021-08-31 | E175: Deed of Trust
A176: First American Title | B176: FA | C176: 155000 | D176: 2021-11-19 | E176: Deed
A177: First American Title | B177: FA | C177: 137648 | D177: 2021-04-09 | E177: Deed of Trust
A178: First American Title | B178: FA | C178: 164000 | D178: 2021-08-31 | E178: Deed of Trust
A179: First American Title | B179: FA | C179: 491640 | D179: 2021-02-26 | E179: Deed of Trust
A180: First American Title | B180: FA | C180: 325200 | D180: 2021-04-21 | E180: Deed of Trust
A181: First American Title | B181: FA | C181: 296518 | D181: 2021-10-08 | E181: Deed
A182: First American Title | B182: FA | C182: 189000 | D182: 2021-04-22 | E182: Deed of Trust
A183: First American Title | B183: FA | C183: 365000 | D183: 2021-02-26 | E183: Deed
A184: First American Title | B184: FA | C184: 401750 | D184: 2021-10-12 | E184: Deed of Trust
A185: First American Title | B185: FA | C185: 40000 | D185: 2021-10-06 | E185: Deed of Trust
A186: First American Title | B186: FA | C186: 107500 | D186: 2021-10-06 | E186: Deed of Trust
A187: First American Title | B187: FA | C187: 309000 | D187: 2021-01-19 | E187: Deed of Trust
A188: First American Title | B188: FA | C188: 68500 | D188: 2021-03-02 | E188: Deed
A189: First American Title | B189: FA | C189: 493007 | D189: 2021-03-15 | E189: Deed Subdivider
A190: First American Title | B190: FA | C190: 238000 | D190: 2021-06-28 | E190: Deed of Trust
A191: First American Title | B191: FA | C191: 660000 | D191: 2021-08-31 | E191: Deed
A192: First American Title | B192: FA | C192: 550000 | D192: 2021-01-15 | E192: Deed
A193: First American Title | B193: FA | C193: 222323 | D193: 2021-03-03 | E193: Deed of Trust
A194: First American Title | B194: FA | C194: 23000 | D194: 2021-05-28 | E194: Deed
A195: First American Title | B195: FA | C195: 355000 | D195: 2021-02-17 | E195: Deed
A196: First American Title | B196: FA | C196: 418000 | D196: 2021-10-15 | E196: Deed
A197: First American Title | B197: FA | C197: 400000 | D197: 2021-11-15 | E197: Deed
A198: First American Title | B198: FA | C198: 529000 | D198: 2021-04-14 | E198: Deed
A199: First American Title | B199: FA | C199: 2675000 | D199: 2021-04-14 | E199: Deed
A200: First American Title | B200: FA | C200: 312000 | D200: 2021-04-14 | E200: Deed of Trust
... 4040 more rows
